Organisation Name (A),Department (B),Service Cat Label (C ),Purpose of Spend (D),Expenditure CIPFA Sub Group (E),Supplier (F),Supplier Reference (G),Pay Date (H),Transaction Number (I),Net Amount (J),Grant to VCSE? (K),Charity Number (L),Card Transaction (M),Irrecoverable VAT (N)
Pendle Borough Council,Operational Services,Premises Related Expense,Bldgs : R & M : Day To Day,2001,BARNES JB LIMITED,A0000202,20/07/2023,OPS0335229,54.37,N,,N,N
Pendle Borough Council,Operational Services,Transport Related Expense,Tprt : Repairs : General,3105,BARNES JB LIMITED,A0000202,13/07/2023,OPS0334989,22.75,N,,N,N
Pendle Borough Council,Operational Services,Transport Related Expense,Tprt : Repairs : General,3105,BEARING FACTORS,A0000205,06/07/2023,PCO0334809,82.08,N,,N,N
Pendle Borough Council,Operational Services,Premises Related Expense,Grounds : R & M : Day to Day : Routine,2101,GEORGE BOOCOCK DECORATORS LTD,A0000427,13/07/2023,OPS0334974,295,N,,N,N
Pendle Borough Council,Operational Services,Premises Related Expense,Bldgs : R & M : Day To Day,2001,BARROWFORD SAFE & LOCK SERV LT,A0000458,13/07/2023,OPS0334982,40,N,,N,N
Pendle Borough Council,Operational Services,Premises Related Expense,Bldgs : R & M : Day To Day,2001,BARROWFORD SAFE & LOCK SERV LT,A0000458,13/07/2023,OPS0334982,24,N,,N,N
Pendle Borough Council,Operational Services,Premises Related Expense,Grounds : R & M : Day to Day : Routine,2101,BARROWFORD SAFE & LOCK SERV LT,A0000458,13/07/2023,OPS0334982,88.74,N,,N,N
Pendle Borough Council,Operational Services,Premises Related Expense,Grounds : R & M : Day to Day : Routine,2101,BARROWFORD SAFE & LOCK SERV LT,A0000458,13/07/2023,OPS0334982,6.66,N,,N,N
Pendle Borough Council,Finance,,Other Income : Non-VATable,9303,BRIERFIELD TOWN COUNCIL,A0000469,20/07/2023,FIN0335325,1080,N,,N,N
Pendle Borough Council,Property Services,Premises Related Expense,Bldgs : R & M : Day To Day,2001,BARROWFORD SAFE & LOCK & BB LOCKSMITHS,A0000510,20/07/2023,EST0335258,61.17,N,,N,N
Pendle Borough Council,Property Services,Premises Related Expense,Bldgs : R & M : Day To Day,2001,BARROWFORD SAFE & LOCK & BB LOCKSMITHS,A0000510,20/07/2023,EST0335257,11.65,N,,N,N
Pendle Borough Council,Operational Services,Premises Related Expense,Bldgs : R & M : Day To Day,2001,BARROWFORD SAFE & LOCK & BB LOCKSMITHS,A0000510,13/07/2023,OPS0335003,23.31,N,,N,N
Pendle Borough Council,Finance,Supplies and Services,Seminars etc All Costs,4601,CIPFA,A0000563,13/07/2023,FIN0335178,23.15,N,,N,N
Pendle Borough Council,Housing & Environmental Health,Supplies and Services,Mayoral Expenses,4614,CAVALIER TAXIS,A0000638,13/07/2023,HEH0334993,301,N,,N,N
Pendle Borough Council,Housing & Environmental Health,Transfer Payments,Storage & Homelessness prevention,6104,CAVALIER TAXIS,A0000638,13/07/2023,HEH0335013,170,N,,N,N
Pendle Borough Council,Property Services,Premises Related Expense,Bldgs : R & M : Day To Day,2001,J DRIVER LTD,A0000884,20/07/2023,EST0335284,235.5,N,,N,N
Pendle Borough Council,Property Services,Premises Related Expense,Bldgs : R & M : Day To Day,2001,J DRIVER LTD,A0000884,20/07/2023,EST0335284,573.46,N,,N,N
Pendle Borough Council,Property Services,Premises Related Expense,Bldgs : R & M : Day To Day,2001,J DRIVER LTD,A0000884,20/07/2023,EST0335284,328.59,N,,N,N
Pendle Borough Council,Property Services,Premises Related Expense,Bldgs : R & M : Day To Day,2001,J DRIVER LTD,A0000884,20/07/2023,EST0335284,84,N,,N,N
Pendle Borough Council,Property Services,Premises Related Expense,Bldgs : R & M : Day To Day,2001,J DRIVER LTD,A0000884,27/07/2023,EST0335441,1463.71,N,,N,N
Pendle Borough Council,Property Services,Premises Related Expense,Bldgs : R & M : Day To Day,2001,J DRIVER LTD,A0000884,20/07/2023,EST0335284,195.31,N,,N,N
Pendle Borough Council,Property Services,Capital Costs,Capital: Construction: Conversion/Refu,CD57,J DRIVER LTD,A0000884,13/07/2023,EST0335165,7000,N,,N,N
Pendle Borough Council,Operational Services,Supplies and Services,Protective Clothing,4201,ENGINEERING & FOUNDRY SUPPLIES,A0001002,06/07/2023,PCO0334816,156,N,,N,N
Pendle Borough Council,Operational Services,,Stock : Purchases,PJ01,ENGINEERING & FOUNDRY SUPPLIES,A0001002,20/07/2023,OPS0335224,22.5,N,,N,N
Pendle Borough Council,Operational Services,,Stock : Purchases,PJ01,ENGINEERING & FOUNDRY SUPPLIES,A0001002,27/07/2023,OPS0335366,55.77,N,,N,N
Pendle Borough Council,Housing & Environmental Health,Capital Costs,Ren Grant : 1996 Act,CH22,FERRET INFORMATION SYSTEMS LTD,A0001123,27/07/2023,HEH0335375,215,N,,N,N
Pendle Borough Council,Operational Services,Transport Related Expense,Tprt : Repairs : General,3105,FREIGHT TRANSPORT ASSOCIATION,A0001124,27/07/2023,OPS0335365,42,N,,N,N
Pendle Borough Council,Operational Services,Transport Related Expense,Tprt : Repairs : General,3105,FREIGHT TRANSPORT ASSOCIATION,A0001124,20/07/2023,OPS0335241,44,N,,N,N
Pendle Borough Council,Operational Services,Supplies and Services,EFM : Photocopiers,4001,FREIGHT TRANSPORT ASSOCIATION,A0001124,06/07/2023,OPS0334823,1000,N,,N,N
Pendle Borough Council,Operational Services,Transport Related Expense,Tprt : Repairs : General,3105,GIBSONS GARDEN MACHINERY LTD,A0001201,13/07/2023,OPS0335179,72.84,N,,N,N
Pendle Borough Council,Operational Services,Transport Related Expense,Tprt : Repairs : General,3105,GIBSONS GARDEN MACHINERY LTD,A0001201,13/07/2023,PCO0334822,165.2,N,,N,N
Pendle Borough Council,Operational Services,Transport Related Expense,Tprt : Repairs : General,3105,GIBSONS GARDEN MACHINERY LTD,A0001201,13/07/2023,PCO0333723,79.56,N,,N,N
Pendle Borough Council,Operational Services,Transport Related Expense,Tprt : Repairs : General,3105,GIBSONS GARDEN MACHINERY LTD,A0001201,13/07/2023,PCO4006694,-409.68,N,,N,N
Pendle Borough Council,Operational Services,Transport Related Expense,Tprt : Repairs : General,3105,GIBSONS GARDEN MACHINERY LTD,A0001201,13/07/2023,OPS0334988,184.64,N,,N,N
Pendle Borough Council,Operational Services,Transport Related Expense,Tprt : Repairs : General,3105,GIBSONS GARDEN MACHINERY LTD,A0001201,13/07/2023,OPS0334986,6.88,N,,N,N
Pendle Borough Council,Operational Services,Transport Related Expense,Tprt : Repairs : General,3105,GIBSONS GARDEN MACHINERY LTD,A0001201,13/07/2023,OPS0334988,184.63,N,,N,N
Pendle Borough Council,Operational Services,Transport Related Expense,Tprt : Repairs : General,3105,GIBSONS GARDEN MACHINERY LTD,A0001201,20/07/2023,OPS0335200,355.34,N,,N,N
Pendle Borough Council,Operational Services,Transport Related Expense,Tprt : Repairs : General,3105,GIBSONS GARDEN MACHINERY LTD,A0001201,13/07/2023,OPS0334987,47.65,N,,N,N
Pendle Borough Council,Operational Services,Transport Related Expense,Tprt : Repairs : General,3105,GIBSONS GARDEN MACHINERY LTD,A0001201,20/07/2023,OPS0335200,355.37,N,,N,N
Pendle Borough Council,Operational Services,Transport Related Expense,Tprt : Repairs : General,3105,GIBSONS GARDEN MACHINERY LTD,A0001201,13/07/2023,OPS0334987,40.83,N,,N,N
Pendle Borough Council,Operational Services,Transport Related Expense,Tprt : Repairs : General,3105,GIBSONS GARDEN MACHINERY LTD,A0001201,13/07/2023,PCO0332454,56.35,N,,N,N
Pendle Borough Council,Operational Services,Capital Costs,Capital : Purchase,CD01,GIBSONS GARDEN MACHINERY LTD,A0001201,13/07/2023,OPS0334984,26300,N,,N,N
Pendle Borough Council,Economic Growth,Premises Related Expense,Grounds : R & M : Day to Day : Routine,2101,WORKS MANCHESTER LTD t/a PFI GB SIGNS,A0001202,13/07/2023,ECO0335171,27.27,N,,N,N
Pendle Borough Council,Economic Growth,Premises Related Expense,Grounds : R & M : Day to Day : Routine,2101,WORKS MANCHESTER LTD t/a PFI GB SIGNS,A0001202,27/07/2023,HEH0335419,30.52,N,,N,N
Pendle Borough Council,Economic Growth,Premises Related Expense,Grounds : R & M : Day to Day : Routine,2101,WORKS MANCHESTER LTD t/a PFI GB SIGNS,A0001202,27/07/2023,HEH0335419,91.57,N,,N,N
Pendle Borough Council,Economic Growth,Premises Related Expense,Grounds : R & M : Day to Day : Routine,2101,WORKS MANCHESTER LTD t/a PFI GB SIGNS,A0001202,13/07/2023,ECO0335171,27.27,N,,N,N
Pendle Borough Council,Economic Growth,Premises Related Expense,Grounds : R & M : Day to Day : Routine,2101,WORKS MANCHESTER LTD t/a PFI GB SIGNS,A0001202,27/07/2023,HEH0335419,61.05,N,,N,N
Pendle Borough Council,Economic Growth,Premises Related Expense,Grounds : R & M : Day to Day : Routine,2101,WORKS MANCHESTER LTD t/a PFI GB SIGNS,A0001202,27/07/2023,HEH0335419,30.52,N,,N,N
Pendle Borough Council,Economic Growth,Premises Related Expense,Grounds : R & M : Day to Day : Routine,2101,WORKS MANCHESTER LTD t/a PFI GB SIGNS,A0001202,27/07/2023,HEH0335419,122.1,N,,N,N
Pendle Borough Council,Economic Growth,Premises Related Expense,Grounds : R & M : Day to Day : Routine,2101,WORKS MANCHESTER LTD t/a PFI GB SIGNS,A0001202,13/07/2023,ECO0335171,163.62,N,,N,N
Pendle Borough Council,Operational Services,Supplies and Services,EFM Materials,4004,JEWSON LIMITED,A0001323,27/07/2023,OPS0335388,46.98,N,,N,N
Pendle Borough Council,Operational Services,Supplies and Services,EFM Materials,4004,JEWSON LIMITED,A0001323,20/07/2023,OPS0335243,62.64,N,,N,N
Pendle Borough Council,Housing & Environmental Health,Supplies and Services,EFM Materials,4004,KILLGERM CHEMICALS LTD,A0001624,13/07/2023,HED0334871,41,N,,N,N
Pendle Borough Council,Operational Services,Premises Related Expense,Grounds : R & M : Day to Day : Routine,2101,LANLEE SUPPLIES LIMITED,A0001672,13/07/2023,OPS0335034,2.41,N,,N,N
Pendle Borough Council,Operational Services,Premises Related Expense,Grounds : R & M : Day to Day : Routine,2101,LANLEE SUPPLIES LIMITED,A0001672,13/07/2023,OPS0335014,345.78,N,,N,N
Pendle Borough Council,Operational Services,Transport Related Expense,Tprt : Repairs : General,3105,DICK LEIGH,A0001675,20/07/2023,OPS0335240,32.16,N,,N,N
Pendle Borough Council,Operational Services,Transport Related Expense,Tprt : Repairs : General,3105,DICK LEIGH,A0001675,20/07/2023,OPS0335204,98.86,N,,N,N
Pendle Borough Council,Operational Services,Transport Related Expense,Tprt : Repairs : General,3105,DICK LEIGH,A0001675,20/07/2023,OPS0335239,190.8,N,,N,N
Pendle Borough Council,Operational Services,Transport Related Expense,Tprt : Repairs : General,3105,DICK LEIGH,A0001675,27/07/2023,OPS0335412,204.68,N,,N,N
Pendle Borough Council,Operational Services,Transport Related Expense,Tprt : Repairs : General,3105,DICK LEIGH,A0001675,20/07/2023,OPS0335203,259.18,N,,N,N
Pendle Borough Council,Operational Services,Transport Related Expense,Tprt : Repairs : General,3105,DICK LEIGH,A0001675,20/07/2023,OPS0335239,42,N,,N,N
Pendle Borough Council,Operational Services,Transport Related Expense,Tprt : Repairs : General,3105,DICK LEIGH,A0001675,20/07/2023,OPS0335203,32.55,N,,N,N
Pendle Borough Council,Operational Services,Transport Related Expense,Tprt : Repairs : General,3105,DICK LEIGH,A0001675,20/07/2023,OPS0335203,32.55,N,,N,N
Pendle Borough Council,Economic Growth,Capital Costs,Capital : Payments,CD14,LANCASHIRE COUNTY COUNCIL,A0001690,06/07/2023,HED0334837,976.63,N,,N,N
Pendle Borough Council,Housing & Environmental Health,Capital Costs,Ren Grant : 1996 Act,CH22,LANCASHIRE COUNTY COUNCIL,A0001690,27/07/2023,HEH0335381,2982.63,N,,N,N
Pendle Borough Council,Economic Growth,Supplies and Services,Seminars etc All Costs,4601,LOCAL GOVERNMENT ASSOCIATION,A0001752,13/07/2023,HED0334836,555.9,N,,N,N
Pendle Borough Council,Operational Services,Supplies and Services,Other Expenses,4705,JOHN MACADAM & SON (RESCUE) LTD,A0001846,13/07/2023,OPS0335002,120,N,,N,N
Pendle Borough Council,Property Services,Premises Related Expense,Water & Sewerage,2501,WATER PLUS LIMITED,A0001986,20/07/2023,EST0335297,152.74,N,,N,N
Pendle Borough Council,Property Services,Premises Related Expense,Water & Sewerage,2501,WATER PLUS LIMITED,A0001986,20/07/2023,EST0335299,39.42,N,,N,N
Pendle Borough Council,Property Services,Premises Related Expense,Water & Sewerage,2501,WATER PLUS LIMITED,A0001986,06/07/2023,EST0334948,40.5,N,,N,N
Pendle Borough Council,Property Services,Premises Related Expense,Water & Sewerage,2501,WATER PLUS LIMITED,A0001986,27/07/2023,EST0335422,26.4,N,,N,N
Pendle Borough Council,Property Services,Premises Related Expense,Water & Sewerage,2501,WATER PLUS LIMITED,A0001986,27/07/2023,EST0335437,64.3,N,,N,N
Pendle Borough Council,Property Services,Premises Related Expense,Water & Sewerage,2501,WATER PLUS LIMITED,A0001986,27/07/2023,EST0335427,90.86,N,,N,N
Pendle Borough Council,Property Services,Premises Related Expense,Water & Sewerage,2501,WATER PLUS LIMITED,A0001986,06/07/2023,EST0334954,94.22,N,,N,N
Pendle Borough Council,Property Services,Premises Related Expense,Water & Sewerage,2501,WATER PLUS LIMITED,A0001986,06/07/2023,EST0334940,123.47,N,,N,N
Pendle Borough Council,Property Services,Premises Related Expense,Water & Sewerage,2501,WATER PLUS LIMITED,A0001986,06/07/2023,EST0334941,170,N,,N,N
Pendle Borough Council,Property Services,Premises Related Expense,Water & Sewerage,2501,WATER PLUS LIMITED,A0001986,06/07/2023,EST0334954,170,N,,N,N
Pendle Borough Council,Property Services,Premises Related Expense,Water & Sewerage,2501,WATER PLUS LIMITED,A0001986,27/07/2023,EST0335432,20.12,N,,N,N
Pendle Borough Council,Property Services,Premises Related Expense,Water & Sewerage,2501,WATER PLUS LIMITED,A0001986,06/07/2023,EST0334943,20.57,N,,N,N
Pendle Borough Council,Property Services,Premises Related Expense,Water & Sewerage,2501,WATER PLUS LIMITED,A0001986,20/07/2023,EST0335301,59.9,N,,N,N
Pendle Borough Council,Property Services,Premises Related Expense,Water & Sewerage,2501,WATER PLUS LIMITED,A0001986,20/07/2023,EST0335296,8,N,,N,N
Pendle Borough Council,Property Services,Premises Related Expense,Water & Sewerage,2501,WATER PLUS LIMITED,A0001986,20/07/2023,EST0335298,15.02,N,,N,N
Pendle Borough Council,Property Services,Premises Related Expense,Water & Sewerage,2501,WATER PLUS LIMITED,A0001986,27/07/2023,EST0335445,19.76,N,,N,N
Pendle Borough Council,Property Services,Premises Related Expense,Water & Sewerage,2501,WATER PLUS LIMITED,A0001986,06/07/2023,EST0334947,116.7,N,,N,N
Pendle Borough Council,Property Services,Premises Related Expense,Water & Sewerage,2501,WATER PLUS LIMITED,A0001986,27/07/2023,EST0335430,1.34,N,,N,N
Pendle Borough Council,Property Services,Premises Related Expense,Water & Sewerage,2501,WATER PLUS LIMITED,A0001986,06/07/2023,EST0334944,1.39,N,,N,N
Pendle Borough Council,Property Services,Premises Related Expense,Water & Sewerage,2501,WATER PLUS LIMITED,A0001986,06/07/2023,EST0334950,207.42,N,,N,N
Pendle Borough Council,Property Services,Premises Related Expense,Water & Sewerage,2501,WATER PLUS LIMITED,A0001986,06/07/2023,EST0334949,391.55,N,,N,N
Pendle Borough Council,Property Services,Premises Related Expense,Water & Sewerage,2501,WATER PLUS LIMITED,A0001986,27/07/2023,EST0335434,192.89,N,,N,N
Pendle Borough Council,Property Services,Premises Related Expense,Water & Sewerage,2501,WATER PLUS LIMITED,A0001986,06/07/2023,EST0334941,201.31,N,,N,N
Pendle Borough Council,Property Services,Premises Related Expense,Water & Sewerage,2501,WATER PLUS LIMITED,A0001986,27/07/2023,EST0335429,15.84,N,,N,N
Pendle Borough Council,Property Services,Premises Related Expense,Water & Sewerage,2501,WATER PLUS LIMITED,A0001986,06/07/2023,EST0334945,17.65,N,,N,N
Pendle Borough Council,Property Services,Premises Related Expense,Water & Sewerage,2501,WATER PLUS LIMITED,A0001986,20/07/2023,EST0335305,911.33,N,,N,N
Pendle Borough Council,Property Services,Premises Related Expense,Water & Sewerage,2501,WATER PLUS LIMITED,A0001986,27/07/2023,EST0335431,28.06,N,,N,N
Pendle Borough Council,Property Services,Premises Related Expense,Water & Sewerage,2501,WATER PLUS LIMITED,A0001986,06/07/2023,EST0334942,31.88,N,,N,N
Pendle Borough Council,Property Services,Premises Related Expense,Water & Sewerage,2501,WATER PLUS LIMITED,A0001986,20/07/2023,EST0335304,113.5,N,,N,N
Pendle Borough Council,Property Services,Premises Related Expense,Water & Sewerage,2501,WATER PLUS LIMITED,A0001986,06/07/2023,EST0334946,196.51,N,,N,N
Pendle Borough Council,Property Services,Premises Related Expense,Water & Sewerage,2501,WATER PLUS LIMITED,A0001986,27/07/2023,EST0335424,1123.58,N,,N,N
Pendle Borough Council,Property Services,Premises Related Expense,Water & Sewerage,2501,WATER PLUS LIMITED,A0001986,27/07/2023,EST0335426,3438.14,N,,N,N
Pendle Borough Council,Property Services,Premises Related Expense,Water & Sewerage,2501,WATER PLUS LIMITED,A0001986,20/07/2023,EST0335303,192.15,N,,N,N
Pendle Borough Council,Operational Services,Premises Related Expense,Cleaning Materials,2605,OPTION HYGIENE LIMITED,A0002063,20/07/2023,OPS0335234,1.6,N,,N,N
Pendle Borough Council,Operational Services,Premises Related Expense,Cleaning Materials,2605,OPTION HYGIENE LIMITED,A0002063,27/07/2023,OPS0335405,27.24,N,,N,N
Pendle Borough Council,Operational Services,Premises Related Expense,Cleaning Materials,2605,OPTION HYGIENE LIMITED,A0002063,20/07/2023,OPS0335233,178.65,N,,N,N
Pendle Borough Council,Economic Growth,Premises Related Expense,Grounds : R & M : Day to Day : Routine,2101,PENDLE FROZEN FOODS LTD,A0002087,13/07/2023,ECO0335174,105,N,,N,N
Pendle Borough Council,Operational Services,Premises Related Expense,Bldgs : R & M : Day To Day,2001,POWER PIPES (PENDLE) LIMITED,A0002089,27/07/2023,OPS0335368,685.04,N,,N,N
Pendle Borough Council,Finance,Supplies and Services,Robes & Regalia,4203,PRECIOUS METALS,A0002148,20/07/2023,FIN0335326,460,N,,N,N
Pendle Borough Council,Economic Growth,Supplies and Services,Postages,4501,ROYAL MAIL GROUP LIMITED,A0002281,06/07/2023,HED0334825,62.59,N,,N,N
Pendle Borough Council,Housing & Environmental Health,Supplies and Services,Postages,4501,ROYAL MAIL GROUP LIMITED,A0002281,27/07/2023,HEH0335378,1813.25,N,,N,N
Pendle Borough Council,Housing & Environmental Health,Supplies and Services,Postages,4501,ROYAL MAIL GROUP LIMITED,A0002281,27/07/2023,HEH0335377,5345.75,N,,N,N
Pendle Borough Council,Economic Growth,Supplies and Services,Postages,4501,ROYAL MAIL GROUP LIMITED,A0002281,06/07/2023,HED0334825,10.64,N,,N,N
Pendle Borough Council,Housing & Environmental Health,Supplies and Services,Postages,4501,ROYAL MAIL GROUP LIMITED,A0002281,27/07/2023,HEH0335377,13.66,N,,N,N
Pendle Borough Council,Housing & Environmental Health,Supplies and Services,Postages,4501,ROYAL MAIL GROUP LIMITED,A0002281,27/07/2023,HEH0335378,14.95,N,,N,N
Pendle Borough Council,Housing & Environmental Health,Supplies and Services,Postages,4501,ROYAL MAIL GROUP LIMITED,A0002281,27/07/2023,HEH0335377,0.27,N,,N,N
Pendle Borough Council,Housing & Environmental Health,Supplies and Services,Postages,4501,ROYAL MAIL GROUP LIMITED,A0002281,27/07/2023,HEH0335377,6.99,N,,N,N
Pendle Borough Council,Housing & Environmental Health,Supplies and Services,Postages,4501,ROYAL MAIL GROUP LIMITED,A0002281,27/07/2023,HEH0335378,10.45,N,,N,N
Pendle Borough Council,Economic Growth,Supplies and Services,Postages,4501,ROYAL MAIL GROUP LIMITED,A0002281,06/07/2023,HED0334825,11.46,N,,N,N
Pendle Borough Council,Economic Growth,Supplies and Services,Postages,4501,ROYAL MAIL GROUP LIMITED,A0002281,06/07/2023,HED0334825,1.12,N,,N,N
Pendle Borough Council,Housing & Environmental Health,Supplies and Services,Postages,4501,ROYAL MAIL GROUP LIMITED,A0002281,27/07/2023,HEH0335377,2.72,N,,N,N
Pendle Borough Council,Economic Growth,Supplies and Services,Postages,4501,ROYAL MAIL GROUP LIMITED,A0002281,06/07/2023,HED0334825,11.68,N,,N,N
Pendle Borough Council,Economic Growth,Supplies and Services,Postages,4501,ROYAL MAIL GROUP LIMITED,A0002281,06/07/2023,HED0334825,16.31,N,,N,N
Pendle Borough Council,Housing & Environmental Health,Supplies and Services,Postages,4501,ROYAL MAIL GROUP LIMITED,A0002281,27/07/2023,HEH0335378,25.13,N,,N,N
Pendle Borough Council,Housing & Environmental Health,Supplies and Services,Postages,4501,ROYAL MAIL GROUP LIMITED,A0002281,27/07/2023,HEH0335377,32.43,N,,N,N
Pendle Borough Council,Housing & Environmental Health,Supplies and Services,Postages,4501,ROYAL MAIL GROUP LIMITED,A0002281,27/07/2023,HEH0335377,2.72,N,,N,N
Pendle Borough Council,Housing & Environmental Health,Supplies and Services,Postages,4501,ROYAL MAIL GROUP LIMITED,A0002281,27/07/2023,HEH0335377,69.83,N,,N,N
Pendle Borough Council,Housing & Environmental Health,Supplies and Services,Postages,4501,ROYAL MAIL GROUP LIMITED,A0002281,27/07/2023,HEH0335378,104.37,N,,N,N
Pendle Borough Council,Economic Growth,Supplies and Services,Postages,4501,ROYAL MAIL GROUP LIMITED,A0002281,06/07/2023,HED0334825,114.49,N,,N,N
Pendle Borough Council,Economic Growth,Supplies and Services,Postages,4501,ROYAL MAIL GROUP LIMITED,A0002281,06/07/2023,HED0334825,31.93,N,,N,N
Pendle Borough Council,Housing & Environmental Health,Supplies and Services,Postages,4501,ROYAL MAIL GROUP LIMITED,A0002281,27/07/2023,HEH0335378,66.96,N,,N,N
Pendle Borough Council,Housing & Environmental Health,Supplies and Services,Postages,4501,ROYAL MAIL GROUP LIMITED,A0002281,27/07/2023,HEH0335377,169.92,N,,N,N
Pendle Borough Council,Economic Growth,Supplies and Services,Postages,4501,ROYAL MAIL GROUP LIMITED,A0002281,06/07/2023,HED0334825,1,N,,N,N
Pendle Borough Council,Housing & Environmental Health,Supplies and Services,Postages,4501,ROYAL MAIL GROUP LIMITED,A0002281,27/07/2023,HEH0335377,8.72,N,,N,N
Pendle Borough Council,Housing & Environmental Health,Supplies and Services,Postages,4501,ROYAL MAIL GROUP LIMITED,A0002281,27/07/2023,HEH0335378,9.93,N,,N,N
Pendle Borough Council,Housing & Environmental Health,Supplies and Services,Postages,4501,ROYAL MAIL GROUP LIMITED,A0002281,27/07/2023,HEH0335378,2.49,N,,N,N
Pendle Borough Council,Housing & Environmental Health,Supplies and Services,Postages,4501,ROYAL MAIL GROUP LIMITED,A0002281,27/07/2023,HEH0335377,9.96,N,,N,N
Pendle Borough Council,Economic Growth,Supplies and Services,Postages,4501,ROYAL MAIL GROUP LIMITED,A0002281,06/07/2023,HED0334825,14.94,N,,N,N
Pendle Borough Council,Economic Growth,Supplies and Services,Postages,4501,ROYAL MAIL GROUP LIMITED,A0002281,06/07/2023,HED0334825,128.27,N,,N,N
Pendle Borough Council,Housing & Environmental Health,Supplies and Services,Postages,4501,ROYAL MAIL GROUP LIMITED,A0002281,27/07/2023,HEH0335378,132.72,N,,N,N
Pendle Borough Council,Housing & Environmental Health,Supplies and Services,Postages,4501,ROYAL MAIL GROUP LIMITED,A0002281,27/07/2023,HEH0335377,180.7,N,,N,N
Pendle Borough Council,Economic Growth,Supplies and Services,Postages,4501,ROYAL MAIL GROUP LIMITED,A0002281,06/07/2023,HED0334825,2.1,N,,N,N
Pendle Borough Council,Housing & Environmental Health,Supplies and Services,Postages,4501,ROYAL MAIL GROUP LIMITED,A0002281,27/07/2023,HEH0335377,43.68,N,,N,N
Pendle Borough Council,Housing & Environmental Health,Supplies and Services,Postages,4501,ROYAL MAIL GROUP LIMITED,A0002281,27/07/2023,HEH0335378,49.16,N,,N,N
Pendle Borough Council,Operational Services,Supplies and Services,Postages,4501,ROYAL MAIL GROUP LIMITED,A0002281,13/07/2023,OPS0335004,50,N,,N,N
Pendle Borough Council,Economic Growth,Supplies and Services,Postages,4501,ROYAL MAIL GROUP LIMITED,A0002281,06/07/2023,HED0334825,55.73,N,,N,N
Pendle Borough Council,Operational Services,Transport Related Expense,Tprt : Annual Hire Charge,3601,STANLEY BROTHERS (TIPPERS) LTD,A0002422,13/07/2023,OPS0335009,2420,N,,N,N
Pendle Borough Council,Economic Growth,Premises Related Expense,Grounds : R & M : Day to Day : Routine,2101,T & F STEEL DESIGNS LTD,A0002627,27/07/2023,ECO0335449,225,N,,N,N
Pendle Borough Council,Economic Growth,Premises Related Expense,Grounds : R & M : Day to Day : Routine,2101,T & F STEEL DESIGNS LTD,A0002627,27/07/2023,ECO0335449,340,N,,N,N
Pendle Borough Council,Economic Growth,Premises Related Expense,Grounds : R & M : Day to Day : Routine,2101,T & F STEEL DESIGNS LTD,A0002627,06/07/2023,HED0334884,210,N,,N,N
Pendle Borough Council,Economic Growth,Premises Related Expense,Grounds : R & M : Day to Day : Routine,2101,T & F STEEL DESIGNS LTD,A0002627,06/07/2023,HED0334884,950,N,,N,N
Pendle Borough Council,Economic Growth,Premises Related Expense,Grounds : R & M : Day to Day : Routine,2101,T & F STEEL DESIGNS LTD,A0002627,06/07/2023,HED0334879,135,N,,N,N
Pendle Borough Council,Economic Growth,Premises Related Expense,Grounds : R & M : Day to Day : Routine,2101,T & F STEEL DESIGNS LTD,A0002627,06/07/2023,HED0334879,210,N,,N,N
Pendle Borough Council,Economic Growth,Premises Related Expense,Grounds : R & M : Day to Day : Routine,2101,T & F STEEL DESIGNS LTD,A0002627,06/07/2023,HED0334882,120,N,,N,N
Pendle Borough Council,Economic Growth,Premises Related Expense,Grounds : R & M : Day to Day : Routine,2101,T & F STEEL DESIGNS LTD,A0002627,06/07/2023,HED0334882,125,N,,N,N
Pendle Borough Council,Economic Growth,Premises Related Expense,Grounds : R & M : Day to Day : Routine,2101,T & F STEEL DESIGNS LTD,A0002627,27/07/2023,ECO0335446,130,N,,N,N
Pendle Borough Council,Economic Growth,Premises Related Expense,Grounds : R & M : Day to Day : Routine,2101,T & F STEEL DESIGNS LTD,A0002627,27/07/2023,ECO0335446,135,N,,N,N
Pendle Borough Council,Economic Growth,Premises Related Expense,Grounds : R & M : Day to Day : Routine,2101,TRISTAR PRINTERS LTD,A0002731,13/07/2023,ECO0335173,425,N,,N,N
Pendle Borough Council,Operational Services,Premises Related Expense,Grounds : R & M : Day to Day : Routine,2101,TRISTAR PRINTERS LTD,A0002731,06/07/2023,PCO0334812,92,N,,N,N
Pendle Borough Council,Economic Growth,Supplies and Services,Other Expenses,4705,TRISTAR PRINTERS LTD,A0002731,06/07/2023,HED0334784,627,N,,N,N
Pendle Borough Council,Finance,Supplies and Services,Mobile Phones,4508,EE LIMITED,A0004680,20/07/2023,FIN0335329,166.55,N,,N,N
Pendle Borough Council,Finance,Supplies and Services,Mobile Phones,4508,EE LIMITED,A0004680,20/07/2023,FIN0335328,221,N,,N,N
Pendle Borough Council,Legal & Democratic Services,Supplies and Services,Miscellaneous : Other,4707,PARK  HIGH SCHOOL,A0005785,20/07/2023,LAD0335319,100,N,,N,N
Pendle Borough Council,Operational Services,Transport Related Expense,Tprt : Repairs : General,3105,F G ROWLAND LIMITED,A0006489,20/07/2023,OPS0335202,3778.41,N,,N,N
Pendle Borough Council,Housing & Environmental Health,Indirect Employee Expenses,Staff Refreshments,1261,PHILIP SANDERSON,A0006611,13/07/2023,ECO0334963,8.28,N,,N,N
Pendle Borough Council,Housing & Environmental Health,Supplies and Services,Hospitality,4611,PHILIP SANDERSON,A0006611,13/07/2023,ECO0334963,8.29,N,,N,N
Pendle Borough Council,Property Services,Indirect Employee Expenses,Staff Refreshments,1261,VENDA VALET (MACHINES) LTD,A0009649,06/07/2023,EST0334929,65,N,,N,N
Pendle Borough Council,Legal & Democratic Services,Supplies and Services,Miscellaneous : Other,4707,PENDLE LEISURE LIMITED,A0012961,20/07/2023,LAD0335312,700,N,XR43029,N,N
Pendle Borough Council,Policy & Commissioning,Supplies and Services,Children`s holiday activities,4716,PENDLE LEISURE LIMITED,A0012961,27/07/2023,POL0335212,95,N,XR43029,N,N
Pendle Borough Council,Policy & Commissioning,Supplies and Services,Children`s holiday activities,4716,PENDLE LEISURE LIMITED,A0012961,27/07/2023,POL0335209,10458,N,XR43029,N,N
Pendle Borough Council,Finance,Capital Costs,Land Remediation Costs,CD22,PENDLE LEISURE LIMITED,A0012961,27/07/2023,FIN0335458,504,N,XR43029,N,N
Pendle Borough Council,Operational Services,Supplies and Services,Sub-Contractors,4007,ORCHARD RECYCLING SERVICE,A0015803,20/07/2023,OPS0335242,2333.1,N,,N,N
Pendle Borough Council,Operational Services,Supplies and Services,Sub-Contractors,4007,ORCHARD RECYCLING SERVICE,A0015803,13/07/2023,OPS0335006,2387,N,,N,N
Pendle Borough Council,Operational Services,Supplies and Services,Sub-Contractors,4007,ORCHARD RECYCLING SERVICE,A0015803,27/07/2023,OPS0335391,2410.1,N,,N,N
Pendle Borough Council,Operational Services,Supplies and Services,Sub-Contractors,4007,ORCHARD RECYCLING SERVICE,A0015803,06/07/2023,OPS0334827,2471.7,N,,N,N
Pendle Borough Council,Operational Services,Supplies and Services,Sub-Contractors,4007,ASPEN VALLEY KENNELS & CATTERY,A0022106,13/07/2023,OPS0335010,768,N,,N,N
Pendle Borough Council,Operational Services,Supplies and Services,Other Expenses,4705,ASPEN VALLEY KENNELS & CATTERY,A0022106,13/07/2023,OPS0335010,1037.6,N,,N,N
Pendle Borough Council,Housing & Environmental Health,Supplies and Services,Other Expenses,4705,GRADKO INTERNATIONAL LTD,A0025806,27/07/2023,HEH0335394,211.25,N,,N,N
Pendle Borough Council,Property Services,Premises Related Expense,Service Charge,2702,BARNFIELD INVESTMENT PROPERTIES LTD,A0026595,13/07/2023,EST4006720,-77.15,N,,N,N
Pendle Borough Council,Property Services,Premises Related Expense,Service Charge,2702,BARNFIELD INVESTMENT PROPERTIES LTD,A0026595,13/07/2023,EST0335160,2484.13,N,,N,N
Pendle Borough Council,Economic Growth,Supplies and Services,Seminars etc All Costs,4601,THE ASSOCIATION OF ELECTORAL ADMINISTRATORS,A0040939,06/07/2023,HED0334769,222,N,,N,N
Pendle Borough Council,Economic Growth,Supplies and Services,Printing & Stationery,4301,CIVICA ELECTION SERVICES,A0041321,06/07/2023,HED0334787,7.48,N,,N,N
Pendle Borough Council,Legal & Democratic Services,Supplies and Services,Other Expenses,4705,CIVICA ELECTION SERVICES,A0041321,27/07/2023,LAD0335379,2503.84,N,,N,N
Pendle Borough Council,Operational Services,Supplies and Services,Protective Clothing,4201,PMC POLYTHENE LIMITED,A0043215,13/07/2023,OPS0335016,1006.8,N,,N,N
Pendle Borough Council,Operational Services,,Stock : Purchases,PJ01,PMC POLYTHENE LIMITED,A0043215,20/07/2023,OPS0335223,2469.94,N,,N,N
Pendle Borough Council,Operational Services,Transport Related Expense,Tprt : Repairs : General,3105, J RUSHTON,A0043864,06/07/2023,PCO0334807,80,N,,N,N
Pendle Borough Council,Operational Services,Supplies and Services,Sub-Contractors,4007,S M SHEPHERD BUILDING CONTRACTORS,A0044037,13/07/2023,OPS0334998,40,N,,N,N
Pendle Borough Council,Operational Services,Supplies and Services,Sub-Contractors,4007,S M SHEPHERD BUILDING CONTRACTORS,A0044037,13/07/2023,OPS0334997,160,N,,N,N
Pendle Borough Council,Operational Services,Supplies and Services,Sub-Contractors,4007,S M SHEPHERD BUILDING CONTRACTORS,A0044037,13/07/2023,OPS0335033,300,N,,N,N
Pendle Borough Council,Operational Services,Supplies and Services,Sub-Contractors,4007,S M SHEPHERD BUILDING CONTRACTORS,A0044037,13/07/2023,OPS0335033,300,N,,N,N
Pendle Borough Council,Operational Services,,Paid in the Year,PD03,S M SHEPHERD BUILDING CONTRACTORS,A0044037,27/07/2023,OPS0335389,180,N,,N,N
Pendle Borough Council,Operational Services,,Paid in the Year,PD03,S M SHEPHERD BUILDING CONTRACTORS,A0044037,27/07/2023,OPS0335390,40,N,,N,N
Pendle Borough Council,Operational Services,,Paid in the Year,PD03,S M SHEPHERD BUILDING CONTRACTORS,A0044037,27/07/2023,OPS0335390,160,N,,N,N
Pendle Borough Council,Operational Services,,Paid in the Year,PD03,S M SHEPHERD BUILDING CONTRACTORS,A0044037,27/07/2023,OPS0335390,320,N,,N,N
Pendle Borough Council,Operational Services,Capital Costs,Capital : Payments,CD14,SUTCLIFFE PLAY LTD,A0045788,06/07/2023,PCO0334819,18608.22,N,,N,N
Pendle Borough Council,Finance,Supplies and Services,Subscriptions & Donations,4706,S D C T,A0046313,27/07/2023,FIN0335455,200,N,,N,N
Pendle Borough Council,Economic Growth,Premises Related Expense,Grounds : R & M : Day to Day : Routine,2101,LOOP PUBLISHING LTD,A0047429,27/07/2023,HEH0335417,125,N,,N,N
Pendle Borough Council,Economic Growth,Premises Related Expense,Grounds : R & M : Day to Day : Routine,2101,LOOP PUBLISHING LTD,A0047429,27/07/2023,HEH0335418,200,N,,N,N
Pendle Borough Council,Operational Services,Premises Related Expense,Grounds : R & M : Day to Day : Routine,2101,LOOP PUBLISHING LTD,A0047429,27/07/2023,OPS0335198,150,N,,N,N
Pendle Borough Council,Finance,Supplies and Services,Publicity & advertisement,4704,LOOP PUBLISHING LTD,A0047429,27/07/2023,FIN4006729,-150,N,,N,N
Pendle Borough Council,Finance,Supplies and Services,Publicity & advertisement,4704,LOOP PUBLISHING LTD,A0047429,27/07/2023,FIN4006729,-150,N,,N,N
Pendle Borough Council,Policy & Commissioning,Supplies and Services,Children`s holiday activities,4716,LOOP PUBLISHING LTD,A0047429,27/07/2023,POL0335213,150,N,,N,N
Pendle Borough Council,Policy & Commissioning,Supplies and Services,Children`s holiday activities,4716,LOOP PUBLISHING LTD,A0047429,27/07/2023,POL0335215,175,N,,N,N
Pendle Borough Council,Property Services,Premises Related Expense,Electricity,2203,NPOWER,A0048483,13/07/2023,EST0335161,759.67,N,,N,N
Pendle Borough Council,Economic Growth,Supplies and Services,Other Expenses,4705,BRADLEY PRIMARY SCHOOL,A0048554,06/07/2023,HED0334830,2115,N,,N,N
Pendle Borough Council,Legal & Democratic Services,Supplies and Services,Miscellaneous : Other,4707,NEW LIFE CHRISTIAN CENTRE,A0048955,20/07/2023,LAD0335316,120,N,1051832,N,N
Pendle Borough Council,"Planning, Building Control & Regulatory Services",Supplies and Services,EFM : Other Equipment,4003,VIP SYSTEM LIMITED,A0050529,27/07/2023,PBC0335416,1938.18,N,,N,N
Pendle Borough Council,"Planning, Building Control & Regulatory Services",,Other Income : Non-VATable,9303,VIP SYSTEM LIMITED,A0050529,27/07/2023,PBC0335416,834.96,N,,N,N
Pendle Borough Council,Operational Services,Transport Related Expense,Tprt : Repairs : General,3105,CAMPEY TURF CARE SYSTEMS,A0050717,20/07/2023,OPS0335195,171.78,N,,N,N
Pendle Borough Council,Finance,Premises Related Expense,Rents,2301,LIBERATA UK LTD,A0051618,13/07/2023,FIN0335176,514.83,N,,N,N
Pendle Borough Council,Operational Services,Supplies and Services,Miscellaneous : Other,4707,LIBERATA UK LTD,A0051618,06/07/2023,OPS0334824,2985.11,N,,N,N
Pendle Borough Council,Finance,Agency Costs,Liberata,5301,LIBERATA UK LTD,A0051618,13/07/2023,FIN0335177,3013.58,N,,N,N
Pendle Borough Council,Finance,Agency Costs,Liberata,5301,LIBERATA UK LTD,A0051618,20/07/2023,FIN0335324,6000,N,,N,N
Pendle Borough Council,Finance,Agency Costs,Liberata,5301,LIBERATA UK LTD,A0051618,20/07/2023,FIN0335323,10772,N,,N,N
Pendle Borough Council,Finance,,Other Income : VATable,9203,LIBERATA UK LTD,A0051618,27/07/2023,FIN0335454,5777.37,N,,N,N
Pendle Borough Council,Economic Growth,Capital Costs,Capital: Design Fees,CD53,LIBERATA UK LTD,A0051618,06/07/2023,HED0334834,3947.83,N,,N,N
Pendle Borough Council,Economic Growth,Capital Costs,Capital: Design Fees,CD53,LIBERATA UK LTD,A0051618,06/07/2023,HED0334835,3947.83,N,,N,N
Pendle Borough Council,Operational Services,Capital Costs,Capital : Payments,CD14,IPL PLASTICS (UK) LIMITED,A0052535,13/07/2023,OPS0335008,0,N,,N,N
Pendle Borough Council,Operational Services,Capital Costs,Capital : Payments,CD14,IPL PLASTICS (UK) LIMITED,A0052535,13/07/2023,OPS0335007,11340,N,,N,N
Pendle Borough Council,Housing & Environmental Health,Capital Costs,Ren Grant : 1996 Act,CH22,WHATMORE LTD,A0054380,27/07/2023,HEH0335380,7596.4,N,,N,N
Pendle Borough Council,Housing & Environmental Health,Supplies and Services,Other Expenses,4705,TOGETHER HOUSING ASSOCIATION,A0055008,20/07/2023,HEH0335253,289.88,N,,N,N
Pendle Borough Council,Operational Services,Indirect Employee Expenses,Emp : Training : General,1217,BEN SHAW TRAINING LIMITED,A0055722,27/07/2023,OPS0335387,270,N,,N,N
Pendle Borough Council,Economic Growth,Supplies and Services,Reference Books Acts,4304,ROYAL TOWN PLANNING INSTITUTE,A0055984,06/07/2023,HED4006722,-160,N,,N,N
Pendle Borough Council,Economic Growth,Supplies and Services,Reference Books Acts,4304,ROYAL TOWN PLANNING INSTITUTE,A0055984,06/07/2023,HED0334775,85,N,,N,N
Pendle Borough Council,Economic Growth,Supplies and Services,Reference Books Acts,4304,ROYAL TOWN PLANNING INSTITUTE,A0055984,06/07/2023,HED0334776,85,N,,N,N
Pendle Borough Council,Economic Growth,Supplies and Services,Reference Books Acts,4304,ROYAL TOWN PLANNING INSTITUTE,A0055984,06/07/2023,HED0334780,85,N,,N,N
Pendle Borough Council,Economic Growth,Supplies and Services,Reference Books Acts,4304,ROYAL TOWN PLANNING INSTITUTE,A0055984,06/07/2023,HED0334773,170,N,,N,N
Pendle Borough Council,Economic Growth,Supplies and Services,Reference Books Acts,4304,ROYAL TOWN PLANNING INSTITUTE,A0055984,06/07/2023,HED0334777,170,N,,N,N
Pendle Borough Council,Economic Growth,Supplies and Services,Reference Books Acts,4304,ROYAL TOWN PLANNING INSTITUTE,A0055984,06/07/2023,HED0334778,170,N,,N,N
Pendle Borough Council,Economic Growth,Supplies and Services,Reference Books Acts,4304,ROYAL TOWN PLANNING INSTITUTE,A0055984,06/07/2023,HED0334779,170,N,,N,N
Pendle Borough Council,Economic Growth,Supplies and Services,Reference Books Acts,4304,ROYAL TOWN PLANNING INSTITUTE,A0055984,06/07/2023,HED0334774,255,N,,N,N
Pendle Borough Council,Operational Services,Transport Related Expense,Tprt : Repairs : General,3105,HYDRAIR,A0056976,27/07/2023,OPS0335411,45,N,,N,N
Pendle Borough Council,Operational Services,Premises Related Expense,Bldgs : R & M : Day To Day,2001,A BINNS & CO,A0057121,20/07/2023,OPS0335235,3080,N,,N,N
Pendle Borough Council,Operational Services,Premises Related Expense,Grounds : R & M : Day to Day : Routine,2101,A BINNS & CO,A0057121,20/07/2023,OPS0335235,300,N,,N,N
Pendle Borough Council,Operational Services,Premises Related Expense,Grounds : R & M : Day to Day : Routine,2101,A BINNS & CO,A0057121,20/07/2023,OPS0335235,1600,N,,N,N
Pendle Borough Council,Operational Services,Premises Related Expense,Grounds : R & M : Day to Day : Routine,2101,A BINNS & CO,A0057121,20/07/2023,OPS0335235,1000,N,,N,N
Pendle Borough Council,Operational Services,Premises Related Expense,Grounds : R & M : Day to Day : Routine,2101,A BINNS & CO,A0057121,20/07/2023,OPS0335235,2000,N,,N,N
Pendle Borough Council,Operational Services,Premises Related Expense,Grounds : R & M : Day to Day : Routine,2101,A BINNS & CO,A0057121,13/07/2023,OPS0334978,870,N,,N,N
Pendle Borough Council,Operational Services,Premises Related Expense,Grounds : R & M : Day to Day : Routine,2101,A BINNS & CO,A0057121,13/07/2023,OPS0334978,600,N,,N,N
Pendle Borough Council,Operational Services,Premises Related Expense,Grounds : R & M : Day to Day : Routine,2101,A BINNS & CO,A0057121,13/07/2023,OPS0334978,570,N,,N,N
Pendle Borough Council,Operational Services,Premises Related Expense,Grounds : R & M : Day to Day : Routine,2101,A BINNS & CO,A0057121,13/07/2023,OPS0334981,1100,N,,N,N
Pendle Borough Council,Operational Services,Premises Related Expense,Grounds : R & M : Day to Day : Routine,2101,A BINNS & CO,A0057121,13/07/2023,OPS0334978,1230,N,,N,N
Pendle Borough Council,Operational Services,Premises Related Expense,Grounds : R & M : Day to Day : Routine,2101,A BINNS & CO,A0057121,13/07/2023,OPS0334978,2200,N,,N,N
Pendle Borough Council,Operational Services,Premises Related Expense,Bldgs : R & M : Day To Day,2001,P LEE WASTE OIL LIMTED,A0058412,06/07/2023,OPS0334864,820,N,,N,N
Pendle Borough Council,Operational Services,Transport Related Expense,Tprt : Repairs : General,3105,UNITED UTILITIES,A0059246,20/07/2023,OPS0335220,35.51,N,,N,N
Pendle Borough Council,Operational Services,Transport Related Expense,Tprt : Repairs : General,3105,UNITED UTILITIES,A0059246,20/07/2023,OPS0335220,35.51,N,,N,N
Pendle Borough Council,Economic Growth,Agency Costs,Lancashire C C,5102,NSL LIMITED,A0059256,27/07/2023,HEH0335421,2539.2,N,,N,N
Pendle Borough Council,"Planning, Building Control & Regulatory Services",Supplies and Services,Adverts : Statutory Notice,4702,NATIONAL WORLD PUBLISHING LTD,A0059640,27/07/2023,PBC0335358,286.01,N,,N,N
Pendle Borough Council,Economic Growth,Supplies and Services,Adverts : Statutory Notice,4702,NATIONAL WORLD PUBLISHING LTD,A0059640,06/07/2023,HED0334785,312.01,N,,N,N
Pendle Borough Council,Housing & Environmental Health,Supplies and Services,Adverts : Statutory Notice,4702,NATIONAL WORLD PUBLISHING LTD,A0059640,13/07/2023,ECO0334973,338.01,N,,N,N
Pendle Borough Council,"Planning, Building Control & Regulatory Services",Supplies and Services,Adverts : Statutory Notice,4702,NATIONAL WORLD PUBLISHING LTD,A0059640,27/07/2023,PBC0335451,416.02,N,,N,N
Pendle Borough Council,Economic Growth,Supplies and Services,Other Expenses,4705,NATIONAL WORLD PUBLISHING LTD,A0059640,06/07/2023,HED0334832,347.58,N,,N,N
Pendle Borough Council,Legal & Democratic Services,,Other Income : Non-VATable,9303,NATIONAL WORLD PUBLISHING LTD,A0059640,20/07/2023,LAD0335216,208.01,N,,N,N
Pendle Borough Council,Housing & Environmental Health,Transfer Payments,Accommodation ,6103,HILL VIEW (PRIVATE) HOTEL,A0059754,20/07/2023,HEH0335254,7995,N,,N,N
Pendle Borough Council,Property Services,Premises Related Expense,Bldgs : R & M : Day To Day,2001,MAXIGIENE ENVIRONMENTAL SERVICES LTD,A0060911,06/07/2023,EST0334953,25,N,,N,N
Pendle Borough Council,Property Services,Supplies and Services,Other Expenses,4705,MAXIGIENE ENVIRONMENTAL SERVICES LTD,A0060911,06/07/2023,EST0334951,745,N,,N,N
Pendle Borough Council,Operational Services,Supplies and Services,EFM Materials,4004,CONTAINER CARE SOLUTIONS LIMITED,A0061112,13/07/2023,OPS0335023,145,N,,N,N
Pendle Borough Council,Operational Services,Supplies and Services,EFM Materials,4004,CONTAINER CARE SOLUTIONS LIMITED,A0061112,13/07/2023,OPS0335020,805,N,,N,N
Pendle Borough Council,Operational Services,Supplies and Services,EFM Materials,4004,CONTAINER CARE SOLUTIONS LIMITED,A0061112,20/07/2023,OPS0335227,2375,N,,N,N
Pendle Borough Council,Operational Services,Supplies and Services,EFM Materials,4004,CONTAINER CARE SOLUTIONS LIMITED,A0061112,20/07/2023,OPS0335225,4425,N,,N,N
Pendle Borough Council,Operational Services,Supplies and Services,EFM Materials,4004,CONTAINER CARE SOLUTIONS LIMITED,A0061112,20/07/2023,OPS0335226,9500,N,,N,N
Pendle Borough Council,Operational Services,Supplies and Services,EFM Materials,4004,CONTAINER CARE SOLUTIONS LIMITED,A0061112,13/07/2023,OPS0335021,9875,N,,N,N
Pendle Borough Council,Economic Growth,Supplies and Services,Mayoral Expenses,4614,DAISY CHAIN (BURNLEY)  LIMITED,A0061684,06/07/2023,HED0334782,600,N,,N,N
Pendle Borough Council,Housing & Environmental Health,Supplies and Services,Seminars etc All Costs,4601,SEFTON M B C,A0061779,13/07/2023,HEH0334995,500,N,,N,N
Pendle Borough Council,Legal & Democratic Services,Supplies and Services,Miscellaneous : Other,4707,NORTH VALLEY COMMUNITY CENTRE,A0062271,20/07/2023,LAD0335320,96,N,,N,N
Pendle Borough Council,Property Services,Premises Related Expense,Bldgs : R & M : Day To Day,2001,KEYPLUS SECURITY LIMITED,A0062723,20/07/2023,EST0335287,26.41,N,,N,N
Pendle Borough Council,Housing & Environmental Health,Supplies and Services,Uniforms,4202,REDACT - PERSONAL DATA,A0062864,13/07/2023,HED0334838,21.65,N,,N,N
Pendle Borough Council,Operational Services,Premises Related Expense,Grounds : R & M : Day to Day : Routine,2101,BOUNCEBACK SAFETY SERVICES LTD,A0063002,27/07/2023,OPS0335413,480,N,,N,N
Pendle Borough Council,Operational Services,Premises Related Expense,Grounds : R & M : Day to Day : Routine,2101,BOUNCEBACK SAFETY SERVICES LTD,A0063002,13/07/2023,OPS0334975,860,N,,N,N
Pendle Borough Council,Human Resources,Indirect Employee Expenses,Emp : Medical Expenses,1236,COLNE OSTEOPATHY,A0065115,27/07/2023,PER0335360,40,N,,N,N
Pendle Borough Council,Human Resources,Indirect Employee Expenses,Emp : Medical Expenses,1236,COLNE OSTEOPATHY,A0065115,27/07/2023,PER0335361,160,N,,N,N
Pendle Borough Council,Human Resources,Indirect Employee Expenses,Emp : Medical Expenses,1236,COLNE OSTEOPATHY,A0065115,27/07/2023,PER0335362,160,N,,N,N
Pendle Borough Council,Economic Growth,Supplies and Services,Consultants Fees,4401,PAUL WAITE ASSOCIATES LTD,A0066188,06/07/2023,HED0334792,2500,N,,N,N
Pendle Borough Council,Property Services,Capital Costs,Capital: Construction: Conversion/Refu,CD57,PAUL WAITE ASSOCIATES LTD,A0066188,20/07/2023,EST0335289,600,N,,N,N
Pendle Borough Council,Operational Services,Supplies and Services,Other Expenses,4705,EVAC & CHAIR INTERNATIONAL LTD,A0066300,20/07/2023,OPS0335222,160,N,,N,N
Pendle Borough Council,Operational Services,Premises Related Expense,Grounds : R & M : Day to Day : Routine,2101,PROLUDIC LIMITED,A0066305,06/07/2023,PCO0334821,1133.96,N,,N,N
Pendle Borough Council,Human Resources,Transport Related Expense,Tprt : Annual Hire Charge,3601,LEX AUTOLEASE LIMITED,A0066530,27/07/2023,PER0335363,343.04,N,,N,N
Pendle Borough Council,Property Services,Premises Related Expense,Bldgs : R & M : Day To Day,2001,SPEAKMAN CONTRACTORS LTD,A0066581,27/07/2023,EST0335452,109.35,N,,N,N
Pendle Borough Council,Property Services,Premises Related Expense,Bldgs : R & M : Day To Day,2001,SPEAKMAN CONTRACTORS LTD,A0066581,20/07/2023,EST0335285,228.12,N,,N,N
Pendle Borough Council,Property Services,Premises Related Expense,Bldgs : R & M : Day To Day,2001,SPEAKMAN CONTRACTORS LTD,A0066581,20/07/2023,EST0335285,100.97,N,,N,N
Pendle Borough Council,Property Services,Premises Related Expense,Bldgs : R & M : Day To Day,2001,SPEAKMAN CONTRACTORS LTD,A0066581,27/07/2023,EST0335452,7656,N,,N,N
Pendle Borough Council,Property Services,Transport Related Expense,Hire of Transport,3501,SPEAKMAN CONTRACTORS LTD,A0066581,27/07/2023,EST0335452,450.27,N,,N,N
Pendle Borough Council,Economic Growth,Premises Related Expense,Grounds : R & M : Day to Day : Routine,2101,LIVESEY BUILDING MAINTENANCE CONTRACTORS,A0066865,06/07/2023,HED0334888,48,N,,N,N
Pendle Borough Council,Economic Growth,Premises Related Expense,Grounds : R & M : Day to Day : Routine,2101,LIVESEY BUILDING MAINTENANCE CONTRACTORS,A0066865,06/07/2023,HED0334888,160,N,,N,N
Pendle Borough Council,Economic Growth,Premises Related Expense,Grounds : R & M : Day to Day : Routine,2101,LIVESEY BUILDING MAINTENANCE CONTRACTORS,A0066865,06/07/2023,HED0334886,1900,N,,N,N
Pendle Borough Council,Economic Growth,Premises Related Expense,Grounds : R & M : Day to Day : Routine,2101,LIVESEY BUILDING MAINTENANCE CONTRACTORS,A0066865,06/07/2023,HED0334886,4000,N,,N,N
Pendle Borough Council,Economic Growth,Premises Related Expense,Grounds : R & M : Day to Day : Routine,2101,LIVESEY BUILDING MAINTENANCE CONTRACTORS,A0066865,06/07/2023,HED0334887,140,N,,N,N
Pendle Borough Council,Economic Growth,Premises Related Expense,Grounds : R & M : Day to Day : Routine,2101,LIVESEY BUILDING MAINTENANCE CONTRACTORS,A0066865,06/07/2023,HED0334887,650,N,,N,N
Pendle Borough Council,Economic Growth,Premises Related Expense,Grounds : R & M : Day to Day : Routine,2101,LIVESEY BUILDING MAINTENANCE CONTRACTORS,A0066865,06/07/2023,HED0334891,427.14,N,,N,N
Pendle Borough Council,Economic Growth,Premises Related Expense,Grounds : R & M : Day to Day : Routine,2101,LIVESEY BUILDING MAINTENANCE CONTRACTORS,A0066865,06/07/2023,HED0334891,783.1,N,,N,N
Pendle Borough Council,Economic Growth,Premises Related Expense,Grounds : R & M : Day to Day : Routine,2101,LIVESEY BUILDING MAINTENANCE CONTRACTORS,A0066865,06/07/2023,HED0334891,427.14,N,,N,N
Pendle Borough Council,Economic Growth,Premises Related Expense,Grounds : R & M : Day to Day : Routine,2101,LIVESEY BUILDING MAINTENANCE CONTRACTORS,A0066865,06/07/2023,HED0334891,711.9,N,,N,N
Pendle Borough Council,Economic Growth,Premises Related Expense,Grounds : R & M : Day to Day : Routine,2101,LIVESEY BUILDING MAINTENANCE CONTRACTORS,A0066865,06/07/2023,HED0334891,278.1,N,,N,N
Pendle Borough Council,Economic Growth,Premises Related Expense,Grounds : R & M : Day to Day : Routine,2101,LIVESEY BUILDING MAINTENANCE CONTRACTORS,A0066865,06/07/2023,HED0334891,362.62,N,,N,N
Pendle Borough Council,Human Resources,Indirect Employee Expenses,Emp : Medical Expenses,1236,PEOPLE ASSET MANAGEMENT LIMITED,A0067613,27/07/2023,PER0335359,89.25,N,,N,N
Pendle Borough Council,Human Resources,Indirect Employee Expenses,Emp : Medical Expenses,1236,PEOPLE ASSET MANAGEMENT LIMITED,A0067613,06/07/2023,PER0334791,145,N,,N,N
Pendle Borough Council,Human Resources,Indirect Employee Expenses,Emp : Medical Expenses,1236,PEOPLE ASSET MANAGEMENT LIMITED,A0067613,13/07/2023,PER0335040,178.5,N,,N,N
Pendle Borough Council,Human Resources,Indirect Employee Expenses,Emp : Medical Expenses,1236,PEOPLE ASSET MANAGEMENT LIMITED,A0067613,20/07/2023,PER0335185,262.5,N,,N,N
Pendle Borough Council,Operational Services,Transport Related Expense,Tprt : Repairs : General,3105,PROBRUSH T/A NORTHERN MUNICIPAL SPARES LTD,A0068263,20/07/2023,OPS0335244,206.85,N,,N,N
Pendle Borough Council,Operational Services,Transport Related Expense,Tprt : Repairs : General,3105,PROBRUSH T/A NORTHERN MUNICIPAL SPARES LTD,A0068263,20/07/2023,OPS0335244,206.85,N,,N,N
Pendle Borough Council,Operational Services,Transport Related Expense,Tprt : Repairs : General,3105,PROBRUSH T/A NORTHERN MUNICIPAL SPARES LTD,A0068263,20/07/2023,OPS0335244,206.85,N,,N,N
Pendle Borough Council,Operational Services,Transport Related Expense,Tprt : Repairs : General,3105,PROBRUSH T/A NORTHERN MUNICIPAL SPARES LTD,A0068263,20/07/2023,OPS0335244,206.85,N,,N,N
Pendle Borough Council,Operational Services,Transport Related Expense,Tprt : Repairs : General,3105,PROBRUSH T/A NORTHERN MUNICIPAL SPARES LTD,A0068263,20/07/2023,OPS0335244,206.82,N,,N,N
Pendle Borough Council,Economic Growth,Supplies and Services,Processing Fees,4424,CHIPSIDE LTD,A0068587,06/07/2023,HED0334890,17.15,N,,N,N
Pendle Borough Council,Economic Growth,Supplies and Services,Processing Fees,4424,CHIPSIDE LTD,A0068587,06/07/2023,HED0334889,208.71,N,,N,N
Pendle Borough Council,Economic Growth,Supplies and Services,Processing Fees,4424,CHIPSIDE LTD,A0068587,27/07/2023,HEH0335420,216.36,N,,N,N
Pendle Borough Council,Operational Services,Supplies and Services,Expenditure : Materials,0002,M C & M A STEWART HAULAGE,A0068863,27/07/2023,OPS0335407,570,N,,N,N
Pendle Borough Council,Operational Services,Supplies and Services,Expenditure : Materials,0002,M C & M A STEWART HAULAGE,A0068863,27/07/2023,OPS0335408,570,N,,N,N
Pendle Borough Council,Economic Growth,Supplies and Services,Other Expenses,4705,ACCENT REGENERATION LIMITED,A0069320,06/07/2023,HED0334878,200,N,,N,N
Pendle Borough Council,"Planning, Building Control & Regulatory Services",Supplies and Services,EFM : Other Equipment,4003,ID MANAGEMENT SYSTEMS,A0069768,13/07/2023,PBC0335036,134.45,N,,N,N
Pendle Borough Council,Operational Services,Transport Related Expense,Tprt : Repairs : General,3105,GUY MACHINERY LIMITED,A0070711,20/07/2023,OPS0335238,45.35,N,,N,N
Pendle Borough Council,Operational Services,Transport Related Expense,Tprt : Repairs : General,3105,GUY MACHINERY LIMITED,A0070711,20/07/2023,OPS0335238,453.53,N,,N,N
Pendle Borough Council,Operational Services,Supplies and Services,Sub-Contractors,4007,RENTOKIL INITIAL UK LIMITED,A0072816,13/07/2023,OPS0335012,43.6,N,,N,N
Pendle Borough Council,Operational Services,Supplies and Services,Sub-Contractors,4007,RENTOKIL INITIAL UK LIMITED,A0072816,13/07/2023,OPS0335025,81.41,N,,N,N
Pendle Borough Council,Operational Services,Supplies and Services,Sub-Contractors,4007,RENTOKIL INITIAL UK LIMITED,A0072816,13/07/2023,OPS0334999,250.22,N,,N,N
Pendle Borough Council,Operational Services,Supplies and Services,Sub-Contractors,4007,RENTOKIL INITIAL UK LIMITED,A0072816,13/07/2023,OPS0335028,259.68,N,,N,N
Pendle Borough Council,Operational Services,Supplies and Services,Sub-Contractors,4007,RENTOKIL INITIAL UK LIMITED,A0072816,13/07/2023,OPS0335028,71.05,N,,N,N
Pendle Borough Council,Operational Services,Supplies and Services,Sub-Contractors,4007,RENTOKIL INITIAL UK LIMITED,A0072816,13/07/2023,OPS0334999,84.36,N,,N,N
Pendle Borough Council,Operational Services,Supplies and Services,Sub-Contractors,4007,RENTOKIL INITIAL UK LIMITED,A0072816,13/07/2023,OPS0335028,83.76,N,,N,N
Pendle Borough Council,Operational Services,Premises Related Expense,Grounds : R & M : Day to Day : Routine,2101,FENLAND LEISURE PRODUCTS LIMITED,A0072950,20/07/2023,OPS0335196,485,N,,N,N
Pendle Borough Council,Finance,Supplies and Services,Subscriptions & Donations,4706,VODAFONE LIMITED,A0076999,20/07/2023,FIN0335327,1057.89,N,,N,N
Pendle Borough Council,Housing & Environmental Health,Supplies and Services,Reference Books Acts,4304,THOMSON REUTERS PROFESSIONAL UK LIMITED,A0077400,13/07/2023,ECO0334958,1153.95,N,,N,N
Pendle Borough Council,Operational Services,Supplies and Services,Expenditure : Materials,0002,RICHARD PEEL GROUNDCARE LIMITED,A0081331,27/07/2023,OPS0335414,75,N,,N,N
Pendle Borough Council,Operational Services,Premises Related Expense,Grounds : R & M : Day to Day : Routine,2101,RICHARD PEEL GROUNDCARE LIMITED,A0081331,27/07/2023,OPS0335414,1340,N,,N,N
Pendle Borough Council,Legal & Democratic Services,Supplies and Services,Miscellaneous : Other,4707,CHRIST CHURCH COLNE,A0081344,20/07/2023,LAD0335317,250,N,,N,N
Pendle Borough Council,Legal & Democratic Services,Supplies and Services,Miscellaneous : Other,4707,PETER BIRTWISTLE TRUST,A0081345,20/07/2023,LAD0335314,70,N,,N,N
Pendle Borough Council,"Planning, Building Control & Regulatory Services",Supplies and Services,EFM : Other Equipment,4003,INSTITUTE OF LICENSING LIMITED,A0082227,27/07/2023,PBC0335357,310,N,,N,N
Pendle Borough Council,Operational Services,Transport Related Expense,Diesel Oil,3202,TATE FUEL OILS LIMITED,A0082819,20/07/2023,OPS0335231,2207.8,N,,N,N
Pendle Borough Council,Operational Services,Transport Related Expense,Tprt : Repairs : General,3105,CRAGGS ENERGY LIMITED,A0083617,27/07/2023,OPS0335370,698.14,N,,N,N
Pendle Borough Council,Operational Services,Transport Related Expense,Tprt : Repairs : General,3105,CRAGGS ENERGY LIMITED,A0083617,27/07/2023,OPS0335370,698.14,N,,N,N
Pendle Borough Council,Operational Services,Transport Related Expense,Tprt : Repairs : General,3105,CRAGGS ENERGY LIMITED,A0083617,27/07/2023,OPS0335370,698.14,N,,N,N
Pendle Borough Council,Operational Services,Transport Related Expense,Tprt : Repairs : General,3105,CRAGGS ENERGY LIMITED,A0083617,27/07/2023,OPS0335370,698.14,N,,N,N
Pendle Borough Council,Operational Services,Transport Related Expense,Tprt : Repairs : General,3105,CRAGGS ENERGY LIMITED,A0083617,27/07/2023,OPS0335370,698.14,N,,N,N
Pendle Borough Council,Operational Services,Transport Related Expense,Tprt : Repairs : General,3105,CRAGGS ENERGY LIMITED,A0083617,27/07/2023,OPS0335370,698.1,N,,N,N
Pendle Borough Council,Finance,Supplies and Services,Allpay,4422,ALLPAY LIMITED,A0084372,06/07/2023,AAS0334926,10,N,,N,N
Pendle Borough Council,Finance,Supplies and Services,Allpay,4422,ALLPAY LIMITED,A0084372,06/07/2023,AAS0334922,16.68,N,,N,N
Pendle Borough Council,Finance,Supplies and Services,Allpay,4422,ALLPAY LIMITED,A0084372,06/07/2023,AAS0334923,22.7,N,,N,N
Pendle Borough Council,Finance,Supplies and Services,Allpay,4422,ALLPAY LIMITED,A0084372,06/07/2023,AAS0334927,66.8,N,,N,N
Pendle Borough Council,Finance,Supplies and Services,Allpay,4422,ALLPAY LIMITED,A0084372,06/07/2023,AAS0334925,158.26,N,,N,N
Pendle Borough Council,Finance,Supplies and Services,Allpay,4422,ALLPAY LIMITED,A0084372,06/07/2023,AAS0334924,1965.68,N,,N,N
Pendle Borough Council,Housing & Environmental Health,Capital Costs,Ren Grant : 1996 Act,CH22,ELITE PLUMBING,A0084584,13/07/2023,HED0334873,102,N,,N,N
Pendle Borough Council,Economic Growth,Supplies and Services,Other Expenses,4705,REDACT - PERSONAL DATA,A0085472,06/07/2023,HED0334829,1750,N,,N,N
Pendle Borough Council,Economic Growth,Premises Related Expense,Grounds : R & M : Day to Day : Routine,2101,KEVIN WILKINSON LANDSCAPES LTD,A0085660,06/07/2023,HED0334885,216,N,,N,N
Pendle Borough Council,Housing & Environmental Health,Supplies and Services,Printing & Stationery,4301,THE COPYRIGHT LICENSING AGENCY LTD,A0085754,13/07/2023,HED0334839,522.56,N,,N,N
Pendle Borough Council,Operational Services,Agency Staff,Emp : Agency Wages,1004,DRIVER HIRE TRAINING,A0089848,27/07/2023,OPS0335392,144.52,N,,N,N
Pendle Borough Council,Operational Services,Agency Staff,Emp : Agency Wages,1004,DRIVER HIRE TRAINING,A0089848,27/07/2023,OPS0335392,144.53,N,,N,N
Pendle Borough Council,Finance,Supplies and Services,Subscriptions & Donations,4706,INFORM CPI LIMITED,A0089895,06/07/2023,AAS0334928,720,N,,N,N
Pendle Borough Council,Economic Growth,Capital Costs,Capital : Payments,CD14,O`CALLAGHAN LIMITED,A0090052,06/07/2023,HED0334883,38164.34,N,,N,N
Pendle Borough Council,Housing & Environmental Health,Supplies and Services,Publicity & advertisement,4704,WE LOVE CREATIVE LIMITED,A0090098,13/07/2023,ECO0334959,400,N,,N,N
Pendle Borough Council,Housing & Environmental Health,Supplies and Services,Publicity & advertisement,4704,WE LOVE CREATIVE LIMITED,A0090098,13/07/2023,ECO0334960,400,N,,N,N
Pendle Borough Council,Operational Services,Premises Related Expense,Niche Walls & Ashes Chambers,2107,MARTIN LEE,A0090177,20/07/2023,OPS0335206,535,N,,N,N
Pendle Borough Council,Operational Services,Premises Related Expense,Niche Walls & Ashes Chambers,2107,MARTIN LEE,A0090177,20/07/2023,OPS0335206,535,N,,N,N
Pendle Borough Council,Operational Services,Premises Related Expense,Grounds : R & M : Day to Day : Routine,2101,LANDSCAPE SUPPLY COMPANY,A0090209,20/07/2023,OPS0335201,67.75,N,,N,N
Pendle Borough Council,Operational Services,,Stock : Purchases,pj01,LANDSCAPE SUPPLY COMPANY,A0090209,27/07/2023,OPS0335386,119.76,N,,N,N
Pendle Borough Council,Legal & Democratic Services,Supplies and Services,Miscellaneous : Other,4707,HOLY TRINITY CHURCH,A0090264,20/07/2023,LAD0335315,140,N,,N,N
Pendle Borough Council,Policy & Commissioning,Supplies and Services,Grant Funding,4737,ST JOHN WITH ST PHILIP PCC,A0090537,27/07/2023,POL0335214,8900,N,,N,N
Pendle Borough Council,Operational Services,Supplies and Services,Sub-Contractors,4007,R S ASBESTOS LIMITED,A0090548,20/07/2023,OPS0335221,200,N,,N,N
Pendle Borough Council,Operational Services,Premises Related Expense,Grounds : R & M : Day to Day : Routine,2101,TREETOPS DE-VEGETATION SERVICES LIMITED,A0090701,20/07/2023,OPS0335194,85,N,,N,N
Pendle Borough Council,Property Services,Capital Costs,Capital: Construction: Conversion/Refu,CD57,B & E BOYS LIMITED,A0090790,20/07/2023,EST0335309,82212.89,N,,N,N
Pendle Borough Council,Operational Services,Transport Related Expense,Tprt : Repairs : General,3105,SUPER AUTO SAVER,A0090951,06/07/2023,PCO0334808,12,N,,N,N
Pendle Borough Council,Housing & Environmental Health,Supplies and Services,Grant Funding,4737,PENDLE NEW NEIGHBOURS,A0091208,13/07/2023,ECO0334962,8900,N,,N,N
Pendle Borough Council,Economic Growth,,Fees Income : VATable,9202,SEARCH ACUMEN LIMITED - AS LLOYD,A0091278,06/07/2023,HED0334567,46,N,,N,N
Pendle Borough Council,Housing & Environmental Health,Capital Costs,Ren Grant : 1996 Act,CH22,THE EXCELLENT RAMP SYSTEM LIMITED,A0091363,13/07/2023,HEH0334994,6350,N,,N,N
Pendle Borough Council,Operational Services,Transport Related Expense,Diesel Oil,3202,WCF LIMITED,A0091385,27/07/2023,OPS0335369,580,N,,N,N
Pendle Borough Council,Operational Services,Supplies and Services,Sub-Contractors,4007,PERMISERV LIMITED,A0091396,13/07/2023,OPS0335018,2883.14,N,,N,N
Pendle Borough Council,Housing & Environmental Health,Supplies and Services,Computer Charges,4509,LOCATA (HOUSING SERVICES) LIMITED,A0091429,20/07/2023,HEH0335256,8000,N,,N,N
Pendle Borough Council,Housing & Environmental Health,Supplies and Services,Other Expenses,4705,SPECIALISED CANVAS SERVICES LTD,A0091459,13/07/2023,ECO0334977,156.4,N,,N,N
Pendle Borough Council,"Planning, Building Control & Regulatory Services",,Fees Income : Non-VATable,9302,PORTALPLANQUEST LIMITED,A0091554,13/07/2023,PBC0335043,206,N,,N,N
Pendle Borough Council,Operational Services,Agency Staff,Emp : Basic Wages,1001,NW RECRUITMENT SERVICES LIMITED,A0091588,13/07/2023,OPS0334979,4071.99,N,,N,N
Pendle Borough Council,Operational Services,Agency Staff,Emp : Basic Wages,1001,NW RECRUITMENT SERVICES LIMITED,A0091588,20/07/2023,OPS0335197,4498.62,N,,N,N
Pendle Borough Council,Operational Services,Agency Staff,Emp : Basic Wages,1001,NW RECRUITMENT SERVICES LIMITED,A0091588,06/07/2023,PCO0334818,4555.47,N,,N,N
Pendle Borough Council,Operational Services,Agency Staff,Emp : Basic Wages,1001,NW RECRUITMENT SERVICES LIMITED,A0091588,27/07/2023,OPS0335406,4901.41,N,,N,N
Pendle Borough Council,Housing & Environmental Health,Agency Staff,Emp : Agency Wages,1004,NW RECRUITMENT SERVICES LIMITED,A0091588,13/07/2023,HED0334876,149.8,N,,N,N
Pendle Borough Council,Operational Services,Agency Staff,Emp : Agency Wages,1004,NW RECRUITMENT SERVICES LIMITED,A0091588,20/07/2023,OPS0335193,120.37,N,,N,N
Pendle Borough Council,Operational Services,Agency Staff,Emp : Agency Wages,1004,NW RECRUITMENT SERVICES LIMITED,A0091588,06/07/2023,PCO0334817,248.03,N,,N,N
Pendle Borough Council,Operational Services,Agency Staff,Emp : Agency Wages,1004,NW RECRUITMENT SERVICES LIMITED,A0091588,20/07/2023,OPS0335199,277.21,N,,N,N
Pendle Borough Council,Operational Services,Agency Staff,Emp : Agency Wages,1004,NW RECRUITMENT SERVICES LIMITED,A0091588,13/07/2023,OPS0335001,3760.38,N,,N,N
Pendle Borough Council,Operational Services,Agency Staff,Emp : Agency Wages,1004,NW RECRUITMENT SERVICES LIMITED,A0091588,13/07/2023,OPS0335000,4616.67,N,,N,N
Pendle Borough Council,Operational Services,Agency Staff,Emp : Agency Wages,1004,NW RECRUITMENT SERVICES LIMITED,A0091588,06/07/2023,OPS0334826,5479.18,N,,N,N
Pendle Borough Council,Operational Services,Agency Staff,Emp : Agency Wages,1004,NW RECRUITMENT SERVICES LIMITED,A0091588,20/07/2023,OPS0335228,5545.73,N,,N,N
Pendle Borough Council,Operational Services,Agency Staff,Emp : Agency Wages,1004,NW RECRUITMENT SERVICES LIMITED,A0091588,20/07/2023,OPS0335228,1468.78,N,,N,N
Pendle Borough Council,Operational Services,Agency Staff,Emp : Agency Wages,1004,NW RECRUITMENT SERVICES LIMITED,A0091588,06/07/2023,OPS0334826,2339.52,N,,N,N
Pendle Borough Council,Operational Services,Agency Staff,Emp : Agency Wages,1004,NW RECRUITMENT SERVICES LIMITED,A0091588,13/07/2023,OPS0335000,2444.79,N,,N,N
Pendle Borough Council,Operational Services,Agency Staff,Emp : Agency Wages,1004,NW RECRUITMENT SERVICES LIMITED,A0091588,13/07/2023,OPS0335001,2803.29,N,,N,N
Pendle Borough Council,Operational Services,Agency Staff,Emp : Agency Wages,1004,NW RECRUITMENT SERVICES LIMITED,A0091588,06/07/2023,OPS0334826,953.21,N,,N,N
Pendle Borough Council,Operational Services,Agency Staff,Emp : Agency Wages,1004,NW RECRUITMENT SERVICES LIMITED,A0091588,20/07/2023,OPS0335228,1172.41,N,,N,N
Pendle Borough Council,Operational Services,Agency Staff,Emp : Agency Wages,1004,NW RECRUITMENT SERVICES LIMITED,A0091588,13/07/2023,OPS0335001,1645.67,N,,N,N
Pendle Borough Council,Operational Services,Agency Staff,Emp : Agency Wages,1004,NW RECRUITMENT SERVICES LIMITED,A0091588,13/07/2023,OPS0335000,1901.92,N,,N,N
Pendle Borough Council,Operational Services,Transport Related Expense,Tprt : Repairs : General,3105,GO PLANT FLEET SERVICES LIMITED,A0091600,20/07/2023,OPS0335248,102.59,N,,N,N
Pendle Borough Council,Operational Services,Transport Related Expense,Tprt : Repairs : General,3105,GO PLANT FLEET SERVICES LIMITED,A0091600,06/07/2023,OPS0334851,90.75,N,,N,N
Pendle Borough Council,Operational Services,Transport Related Expense,Tprt : Repairs : General,3105,GO PLANT FLEET SERVICES LIMITED,A0091600,06/07/2023,OPS0334843,101,N,,N,N
Pendle Borough Council,Operational Services,Transport Related Expense,Tprt : Repairs : General,3105,GO PLANT FLEET SERVICES LIMITED,A0091600,06/07/2023,OPS0334847,10.25,N,,N,N
Pendle Borough Council,Operational Services,Transport Related Expense,Tprt : Repairs : General,3105,GO PLANT FLEET SERVICES LIMITED,A0091600,06/07/2023,OPS0334852,55,N,,N,N
Pendle Borough Council,Operational Services,Transport Related Expense,Tprt : Repairs : General,3105,GO PLANT FLEET SERVICES LIMITED,A0091600,06/07/2023,OPS0334855,72.8,N,,N,N
Pendle Borough Council,Operational Services,Transport Related Expense,Tprt : Repairs : General,3105,GO PLANT FLEET SERVICES LIMITED,A0091600,06/07/2023,OPS0334854,101,N,,N,N
Pendle Borough Council,Operational Services,Transport Related Expense,Tprt : Repairs : General,3105,GO PLANT FLEET SERVICES LIMITED,A0091600,06/07/2023,OPS0334845,162.13,N,,N,N
Pendle Borough Council,Operational Services,Transport Related Expense,Tprt : Repairs : General,3105,GO PLANT FLEET SERVICES LIMITED,A0091600,06/07/2023,OPS0334857,1301.59,N,,N,N
Pendle Borough Council,Operational Services,Transport Related Expense,Tprt : Repairs : General,3105,GO PLANT FLEET SERVICES LIMITED,A0091600,06/07/2023,OPS0334858,129.29,N,,N,N
Pendle Borough Council,Operational Services,Transport Related Expense,Tprt : Repairs : General,3105,GO PLANT FLEET SERVICES LIMITED,A0091600,06/07/2023,OPS0334860,89.95,N,,N,N
Pendle Borough Council,Operational Services,Transport Related Expense,Tprt : Repairs : General,3105,GO PLANT FLEET SERVICES LIMITED,A0091600,06/07/2023,OPS0334862,120.13,N,,N,N
Pendle Borough Council,Operational Services,Transport Related Expense,Tprt : Repairs : General,3105,GO PLANT FLEET SERVICES LIMITED,A0091600,06/07/2023,OPS0334861,421.19,N,,N,N
Pendle Borough Council,Operational Services,Transport Related Expense,Tprt : Repairs : General,3105,GO PLANT FLEET SERVICES LIMITED,A0091600,06/07/2023,OPS0334840,10.25,N,,N,N
Pendle Borough Council,Operational Services,Transport Related Expense,Tprt : Repairs : General,3105,GO PLANT FLEET SERVICES LIMITED,A0091600,06/07/2023,OPS0334841,61.05,N,,N,N
Pendle Borough Council,Operational Services,Transport Related Expense,Tyres,3204,GO PLANT FLEET SERVICES LIMITED,A0091600,06/07/2023,OPS0334847,428.28,N,,N,N
Pendle Borough Council,Operational Services,Transport Related Expense,Tyres,3204,GO PLANT FLEET SERVICES LIMITED,A0091600,06/07/2023,OPS0334846,74.93,N,,N,N
Pendle Borough Council,Operational Services,Transport Related Expense,Tyres,3204,GO PLANT FLEET SERVICES LIMITED,A0091600,06/07/2023,OPS0334850,428.28,N,,N,N
Pendle Borough Council,Operational Services,Transport Related Expense,Tyres,3204,GO PLANT FLEET SERVICES LIMITED,A0091600,06/07/2023,OPS0334848,316.64,N,,N,N
Pendle Borough Council,Operational Services,Transport Related Expense,Tyres,3204,GO PLANT FLEET SERVICES LIMITED,A0091600,06/07/2023,OPS0334857,905.37,N,,N,N
Pendle Borough Council,Operational Services,Transport Related Expense,Tyres,3204,GO PLANT FLEET SERVICES LIMITED,A0091600,06/07/2023,OPS0334863,36.18,N,,N,N
Pendle Borough Council,Operational Services,Transport Related Expense,Tyres,3204,GO PLANT FLEET SERVICES LIMITED,A0091600,06/07/2023,OPS0334859,216.62,N,,N,N
Pendle Borough Council,Operational Services,Transport Related Expense,Tyres,3204,GO PLANT FLEET SERVICES LIMITED,A0091600,06/07/2023,OPS0334842,108.31,N,,N,N
Pendle Borough Council,Operational Services,Transport Related Expense,Tyres,3204,GO PLANT FLEET SERVICES LIMITED,A0091600,06/07/2023,OPS0334856,126.18,N,,N,N
Pendle Borough Council,Operational Services,Transport Related Expense,Tyres,3204,GO PLANT FLEET SERVICES LIMITED,A0091600,06/07/2023,OPS0334844,126.18,N,,N,N
Pendle Borough Council,Operational Services,Transport Related Expense,Tyres,3204,GO PLANT FLEET SERVICES LIMITED,A0091600,06/07/2023,OPS0334853,136.43,N,,N,N
Pendle Borough Council,Operational Services,Transport Related Expense,Tprt : Annual Hire Charge,3601,GO PLANT FLEET SERVICES LIMITED,A0091600,13/07/2023,OPS0335175,3540.62,N,,N,N
Pendle Borough Council,Operational Services,Transport Related Expense,Tprt : Annual Hire Charge,3601,GO PLANT FLEET SERVICES LIMITED,A0091600,13/07/2023,OPS0335175,3540.62,N,,N,N
Pendle Borough Council,Operational Services,Transport Related Expense,Tprt : Annual Hire Charge,3601,GO PLANT FLEET SERVICES LIMITED,A0091600,13/07/2023,OPS0335175,3540.62,N,,N,N
Pendle Borough Council,Operational Services,Transport Related Expense,Tprt : Annual Hire Charge,3601,GO PLANT FLEET SERVICES LIMITED,A0091600,13/07/2023,OPS0335175,3540.62,N,,N,N
Pendle Borough Council,Operational Services,Transport Related Expense,Tprt : Annual Hire Charge,3601,GO PLANT FLEET SERVICES LIMITED,A0091600,13/07/2023,OPS0335175,3540.62,N,,N,N
Pendle Borough Council,Operational Services,Transport Related Expense,Tprt : Annual Hire Charge,3601,GO PLANT FLEET SERVICES LIMITED,A0091600,13/07/2023,OPS0335175,3344.64,N,,N,N
Pendle Borough Council,Operational Services,Transport Related Expense,Tprt : Annual Hire Charge,3601,GO PLANT FLEET SERVICES LIMITED,A0091600,13/07/2023,OPS0335175,3540.62,N,,N,N
Pendle Borough Council,Operational Services,Transport Related Expense,Tprt : Annual Hire Charge,3601,GO PLANT FLEET SERVICES LIMITED,A0091600,13/07/2023,OPS0335175,3540.62,N,,N,N
Pendle Borough Council,Operational Services,Transport Related Expense,Tprt : Annual Hire Charge,3601,GO PLANT FLEET SERVICES LIMITED,A0091600,13/07/2023,OPS0335175,3549.74,N,,N,N
Pendle Borough Council,Operational Services,Transport Related Expense,Tprt : Annual Hire Charge,3601,GO PLANT FLEET SERVICES LIMITED,A0091600,13/07/2023,OPS0335175,3549.74,N,,N,N
Pendle Borough Council,Operational Services,Transport Related Expense,Tprt : Annual Hire Charge,3601,GO PLANT FLEET SERVICES LIMITED,A0091600,13/07/2023,OPS0335175,3549.74,N,,N,N
Pendle Borough Council,Operational Services,Transport Related Expense,Tprt : Annual Hire Charge,3601,GO PLANT FLEET SERVICES LIMITED,A0091600,13/07/2023,OPS0335175,3497.07,N,,N,N
Pendle Borough Council,Operational Services,Transport Related Expense,Tprt : Annual Hire Charge,3601,GO PLANT FLEET SERVICES LIMITED,A0091600,13/07/2023,OPS0335175,3393,N,,N,N
Pendle Borough Council,Operational Services,Transport Related Expense,Tprt : Annual Hire Charge,3601,GO PLANT FLEET SERVICES LIMITED,A0091600,13/07/2023,OPS0335175,2654.17,N,,N,N
Pendle Borough Council,Operational Services,Transport Related Expense,Tprt : Annual Hire Charge,3601,GO PLANT FLEET SERVICES LIMITED,A0091600,13/07/2023,OPS0335175,1981.53,N,,N,N
Pendle Borough Council,Operational Services,Transport Related Expense,Tprt : Annual Hire Charge,3601,GO PLANT FLEET SERVICES LIMITED,A0091600,13/07/2023,OPS0335175,1981.53,N,,N,N
Pendle Borough Council,Operational Services,Transport Related Expense,Tprt : Annual Hire Charge,3601,GO PLANT FLEET SERVICES LIMITED,A0091600,13/07/2023,OPS0335175,1981.53,N,,N,N
Pendle Borough Council,Operational Services,Transport Related Expense,Tprt : Annual Hire Charge,3601,GO PLANT FLEET SERVICES LIMITED,A0091600,13/07/2023,OPS0335175,1981.53,N,,N,N
Pendle Borough Council,Operational Services,Transport Related Expense,Tprt : Annual Hire Charge,3601,GO PLANT FLEET SERVICES LIMITED,A0091600,13/07/2023,OPS0335175,1981.53,N,,N,N
Pendle Borough Council,Operational Services,Transport Related Expense,Tprt : Annual Hire Charge,3601,GO PLANT FLEET SERVICES LIMITED,A0091600,13/07/2023,OPS0335175,509.54,N,,N,N
Pendle Borough Council,Operational Services,Transport Related Expense,Tprt : Annual Hire Charge,3601,GO PLANT FLEET SERVICES LIMITED,A0091600,13/07/2023,OPS0335175,598.81,N,,N,N
Pendle Borough Council,Operational Services,Transport Related Expense,Tprt : Annual Hire Charge,3601,GO PLANT FLEET SERVICES LIMITED,A0091600,13/07/2023,OPS0335175,650,N,,N,N
Pendle Borough Council,Operational Services,Transport Related Expense,Tprt : Annual Hire Charge,3601,GO PLANT FLEET SERVICES LIMITED,A0091600,13/07/2023,OPS0335175,598.81,N,,N,N
Pendle Borough Council,Operational Services,Transport Related Expense,Tprt : Annual Hire Charge,3601,GO PLANT FLEET SERVICES LIMITED,A0091600,13/07/2023,OPS0335175,598.81,N,,N,N
Pendle Borough Council,Operational Services,Transport Related Expense,Tprt : Annual Hire Charge,3601,GO PLANT FLEET SERVICES LIMITED,A0091600,13/07/2023,OPS0335175,650,N,,N,N
Pendle Borough Council,Operational Services,Transport Related Expense,Tprt : Annual Hire Charge,3601,GO PLANT FLEET SERVICES LIMITED,A0091600,13/07/2023,OPS0335175,598.81,N,,N,N
Pendle Borough Council,Operational Services,Transport Related Expense,Tprt : Annual Hire Charge,3601,GO PLANT FLEET SERVICES LIMITED,A0091600,13/07/2023,OPS0335175,239.53,N,,N,N
Pendle Borough Council,Operational Services,Transport Related Expense,Tprt : Annual Hire Charge,3601,GO PLANT FLEET SERVICES LIMITED,A0091600,13/07/2023,OPS0335175,239.53,N,,N,N
Pendle Borough Council,Operational Services,Transport Related Expense,Tprt : Annual Hire Charge,3601,GO PLANT FLEET SERVICES LIMITED,A0091600,13/07/2023,OPS0335175,239.53,N,,N,N
Pendle Borough Council,Operational Services,Transport Related Expense,Tprt : Annual Hire Charge,3601,GO PLANT FLEET SERVICES LIMITED,A0091600,13/07/2023,OPS0335175,239.53,N,,N,N
Pendle Borough Council,Operational Services,Transport Related Expense,Tprt : Annual Hire Charge,3601,GO PLANT FLEET SERVICES LIMITED,A0091600,13/07/2023,OPS0335175,239.53,N,,N,N
Pendle Borough Council,Operational Services,Transport Related Expense,Tprt : Annual Hire Charge,3601,GO PLANT FLEET SERVICES LIMITED,A0091600,13/07/2023,OPS0335175,239.53,N,,N,N
Pendle Borough Council,Operational Services,Transport Related Expense,Tprt : Annual Hire Charge,3601,GO PLANT FLEET SERVICES LIMITED,A0091600,13/07/2023,OPS0335175,239.53,N,,N,N
Pendle Borough Council,Operational Services,Transport Related Expense,Tprt : Annual Hire Charge,3601,GO PLANT FLEET SERVICES LIMITED,A0091600,13/07/2023,OPS0335175,339.69,N,,N,N
Pendle Borough Council,Operational Services,Transport Related Expense,Tprt : Annual Hire Charge,3601,GO PLANT FLEET SERVICES LIMITED,A0091600,06/07/2023,OPS0334849,360,N,,N,N
Pendle Borough Council,Operational Services,Transport Related Expense,Tprt : Annual Hire Charge,3601,GO PLANT FLEET SERVICES LIMITED,A0091600,20/07/2023,OPS0335246,920.4,N,,N,N
Pendle Borough Council,Operational Services,Transport Related Expense,Tprt : Annual Hire Charge,3601,GO PLANT FLEET SERVICES LIMITED,A0091600,13/07/2023,OPS0335175,592.28,N,,N,N
Pendle Borough Council,Operational Services,Transport Related Expense,Tprt : Annual Hire Charge,3601,GO PLANT FLEET SERVICES LIMITED,A0091600,13/07/2023,OPS0335175,592.28,N,,N,N
Pendle Borough Council,Operational Services,Transport Related Expense,Tprt : Annual Hire Charge,3601,GO PLANT FLEET SERVICES LIMITED,A0091600,13/07/2023,OPS0335175,592.28,N,,N,N
Pendle Borough Council,Operational Services,Transport Related Expense,Tprt : Annual Hire Charge,3601,GO PLANT FLEET SERVICES LIMITED,A0091600,13/07/2023,OPS0335175,592.28,N,,N,N
Pendle Borough Council,Operational Services,Transport Related Expense,Tprt : Annual Hire Charge,3601,GO PLANT FLEET SERVICES LIMITED,A0091600,13/07/2023,OPS0335175,592.28,N,,N,N
Pendle Borough Council,Operational Services,Transport Related Expense,Tprt : Annual Hire Charge,3601,GO PLANT FLEET SERVICES LIMITED,A0091600,13/07/2023,OPS0335175,535.67,N,,N,N
Pendle Borough Council,Operational Services,Transport Related Expense,Tprt : Annual Hire Charge,3601,GO PLANT FLEET SERVICES LIMITED,A0091600,13/07/2023,OPS0335175,239.53,N,,N,N
Pendle Borough Council,Operational Services,Transport Related Expense,Tprt : Annual Hire Charge,3601,GO PLANT FLEET SERVICES LIMITED,A0091600,13/07/2023,OPS0335175,496.4,N,,N,N
Pendle Borough Council,Operational Services,Transport Related Expense,Tprt : Annual Hire Charge,3601,GO PLANT FLEET SERVICES LIMITED,A0091600,13/07/2023,OPS0335175,496.4,N,,N,N
Pendle Borough Council,Economic Growth,Supplies and Services,Grant Funding,4737,COLNE PARISH CHURCH ST BARTHOLOMEW,A0091630,06/07/2023,HED0334793,8900,N,,N,N
Pendle Borough Council,Finance,,Fees Income : Non-VATable,9302,COLNE BID LIMITED,A0091663,20/07/2023,FIN0335330,-5524.38,N,,N,N
Pendle Borough Council,Finance,,Paid in the Year,pd03,COLNE BID LIMITED,A0091663,20/07/2023,FIN0335330,-54231.5,N,,N,N
Pendle Borough Council,Finance,,Paid in the Year,pd03,COLNE BID LIMITED,A0091663,20/07/2023,FIN0335330,9755.93,N,,N,N
Pendle Borough Council,Finance,,Paid in the Year,pd03,COLNE BID LIMITED,A0091663,20/07/2023,FIN0335330,54231.5,N,,N,N
Pendle Borough Council,Economic Growth,Premises Related Expense,Grounds : R & M : Day to Day : Routine,2101,A&G LANDSCAPES & GROUNDWORKS LIMITED,A0091675,27/07/2023,ECO0335448,250,N,,N,N
Pendle Borough Council,Economic Growth,Premises Related Expense,Grounds : R & M : Day to Day : Routine,2101,A&G LANDSCAPES & GROUNDWORKS LIMITED,A0091675,27/07/2023,ECO0335448,983.09,N,,N,N
Pendle Borough Council,Economic Growth,Premises Related Expense,Grounds : R & M : Day to Day : Routine,2101,A&G LANDSCAPES & GROUNDWORKS LIMITED,A0091675,06/07/2023,HED0334881,739,N,,N,N
Pendle Borough Council,Economic Growth,,Paid in the Year,pd03,A&G LANDSCAPES & GROUNDWORKS LIMITED,A0091675,06/07/2023,HED0334880,1000,N,,N,N
Pendle Borough Council,Economic Growth,,Paid in the Year,PD03,A&G LANDSCAPES & GROUNDWORKS LIMITED,A0091675,06/07/2023,HED0334880,3815.03,N,,N,N
Pendle Borough Council,Economic Growth,Agency Staff,Emp : Agency Wages,1004,THE OYSTER PARTNERSHIP LIMITED,A0091781,06/07/2023,HED0334770,1509.34,N,,N,N
Pendle Borough Council,Housing & Environmental Health,Agency Staff,Emp : Agency Wages,1004,THE OYSTER PARTNERSHIP LIMITED,A0091781,27/07/2023,HEH0335384,1555.31,N,,N,N
Pendle Borough Council,Housing & Environmental Health,Agency Staff,Emp : Agency Wages,1004,THE OYSTER PARTNERSHIP LIMITED,A0091781,27/07/2023,HEH0335376,1598.94,N,,N,N
Pendle Borough Council,Housing & Environmental Health,Supplies and Services,Consultants Fees,4401,G2 RECRUITMENT SOLUTIONS,A0091827,27/07/2023,HEH0335393,7854.85,N,,N,N
Pendle Borough Council,Housing & Environmental Health,Capital Costs,Ren Grant : 1996 Act,CH22,DYNAMIC PLUMBING AND HEATING,A0091941,27/07/2023,HEH0335383,8069,N,,N,N
Pendle Borough Council,Economic Growth,Supplies and Services,Grant Funding,4737,PENDLE FOOD FOR ALL FOOD CLUB,A0091966,06/07/2023,HED0334794,8900,N,,N,N
Pendle Borough Council,Operational Services,,Stock : Purchases,PJ01,SMI GROUP UK,A0091999,06/07/2023,OPS4006723,-44.22,N,,N,N
Pendle Borough Council,Operational Services,,Stock : Purchases,PJ01,SMI GROUP UK,A0091999,06/07/2023,OPS0334833,45.8,N,,N,N
Pendle Borough Council,Operational Services,,Stock : Purchases,PJ01,SMI GROUP UK,A0091999,13/07/2023,OPS0334996,178.92,N,,N,N
Pendle Borough Council,Operational Services,,Stock : Purchases,PJ01,SMI GROUP UK,A0091999,13/07/2023,OPS0335015,198.3,N,,N,N
Pendle Borough Council,Operational Services,,Stock : Purchases,PJ01,SMI GROUP UK,A0091999,27/07/2023,OPS0335372,242.4,N,,N,N
Pendle Borough Council,Policy & Commissioning,Supplies and Services,Children`s holiday activities,4716,THE LIGHTBEAM ACADEMY LTD,A0092431,27/07/2023,POL0335211,5670,N,,N,N
Pendle Borough Council,Housing & Environmental Health,Capital Costs,Ren Grant : 1996 Act,CH22,OCEAN BATHROOMS TILES AND HEATING LTD,A0092441,13/07/2023,ECO0334957,8588.2,N,,N,N
Pendle Borough Council,Housing & Environmental Health,Capital Costs,Ren Grant : 1996 Act,CH22,BLUEBELL NORTH WEST LIMITED,A0092759,27/07/2023,HEH0335382,5000,N,,N,N
Pendle Borough Council,Economic Growth,Supplies and Services,Other Expenses,4705,BRADLEY BIG LOCAL COMMUNITY LAND TRUST LIMITED,A0093667,06/07/2023,HED0334831,4484.23,N,,N,N
Pendle Borough Council,Operational Services,Premises Related Expense,Grounds : R & M : Day to Day : Routine,2101,TURFIX PITCH SOLUTIONS,A0094206,27/07/2023,OPS0335409,336,N,,N,N
Pendle Borough Council,Operational Services,Premises Related Expense,Grounds : R & M : Day to Day : Routine,2101,TURFIX PITCH SOLUTIONS,A0094206,27/07/2023,OPS0335410,2331.46,N,,N,N
Pendle Borough Council,Operational Services,Premises Related Expense,Grounds : R & M : Day to Day : Routine,2101,TURFIX PITCH SOLUTIONS,A0094206,27/07/2023,OPS0335410,1069.21,N,,N,N
Pendle Borough Council,Revenues Services,Supplies and Services,DSS Collection Fee,4414,MARSTON (HOLDINGS) LIMITED,A0094273,06/07/2023,TRE0334892,7.2,N,,N,N
Pendle Borough Council,Policy & Commissioning,Supplies and Services,Children`s holiday activities,4716,BODIES IN MOTION PENDLE LTD,A0095079,27/07/2023,POL0335252,1900,N,,N,N
Pendle Borough Council,Policy & Commissioning,Supplies and Services,Children`s holiday activities,4716,BODIES IN MOTION PENDLE LTD,A0095079,27/07/2023,POL0335251,5616,N,,N,N
Pendle Borough Council,Economic Growth,Supplies and Services,Consultants Fees,4401,IN SITU IN PLACE,A0095367,06/07/2023,HED0334786,22965.6,N,,N,N
Pendle Borough Council,Operational Services,Supplies and Services,Expenditure : Materials,0002,MERRITT & FRYERS LTD,A0095575,13/07/2023,OPS0334985,1.65,N,,N,N
Pendle Borough Council,Operational Services,Premises Related Expense,Grounds : R & M : Day to Day : Routine,2101,MERRITT & FRYERS LTD,A0095575,13/07/2023,OPS0334983,42,N,,N,N
Pendle Borough Council,Operational Services,Premises Related Expense,Grounds : R & M : Day to Day : Routine,2101,M W ENVIRONMENTAL,A0095862,20/07/2023,OPS0335207,107.5,N,,N,N
Pendle Borough Council,Operational Services,Premises Related Expense,Grounds : R & M : Day to Day : Routine,2101,M W ENVIRONMENTAL,A0095862,06/07/2023,PCO0334811,528.51,N,,N,N
Pendle Borough Council,Operational Services,Premises Related Expense,Grounds : R & M : Day to Day : Routine,2101,M W ENVIRONMENTAL,A0095862,20/07/2023,OPS0335236,205.61,N,,N,N
Pendle Borough Council,Operational Services,Premises Related Expense,Grounds : R & M : Day to Day : Routine,2101,M W ENVIRONMENTAL,A0095862,20/07/2023,OPS0335237,392.68,N,,N,N
Pendle Borough Council,Operational Services,Premises Related Expense,Grounds : R & M : Day to Day : Routine,2101,M W ENVIRONMENTAL,A0095862,06/07/2023,PCO0334820,176.88,N,,N,N
Pendle Borough Council,Operational Services,Premises Related Expense,Grounds : R & M : Day to Day : Routine,2101,M W ENVIRONMENTAL,A0095862,13/07/2023,OPS0335005,100,N,,N,N
Pendle Borough Council,Policy & Commissioning,Supplies and Services,Children`s holiday activities,4716,HARRINGTONS LEARNING CENTRE,A0096412,27/07/2023,POL0335208,28188,N,,N,N
Pendle Borough Council,Property Services,Premises Related Expense,Gas,2202,E.ON NEXT ENERGY LIMITED,A0096428,13/07/2023,EST0335054,24.66,N,,N,N
Pendle Borough Council,Property Services,Premises Related Expense,Gas,2202,E.ON NEXT ENERGY LIMITED,A0096428,13/07/2023,EST0335056,26.41,N,,N,N
Pendle Borough Council,Property Services,Premises Related Expense,Gas,2202,E.ON NEXT ENERGY LIMITED,A0096428,13/07/2023,EST0335055,27.29,N,,N,N
Pendle Borough Council,Property Services,Premises Related Expense,Gas,2202,E.ON NEXT ENERGY LIMITED,A0096428,13/07/2023,EST0335057,27.29,N,,N,N
Pendle Borough Council,Property Services,Premises Related Expense,Gas,2202,E.ON NEXT ENERGY LIMITED,A0096428,13/07/2023,EST0335053,27.3,N,,N,N
Pendle Borough Council,Property Services,Premises Related Expense,Gas,2202,E.ON NEXT ENERGY LIMITED,A0096428,20/07/2023,EST0335268,30.1,N,,N,N
Pendle Borough Council,Property Services,Premises Related Expense,Gas,2202,E.ON NEXT ENERGY LIMITED,A0096428,13/07/2023,EST0335051,45.83,N,,N,N
Pendle Borough Council,Property Services,Premises Related Expense,Gas,2202,E.ON NEXT ENERGY LIMITED,A0096428,13/07/2023,EST0335051,53.71,N,,N,N
Pendle Borough Council,Property Services,Premises Related Expense,Electricity,2203,E.ON NEXT ENERGY LIMITED,A0096428,20/07/2023,EST0335281,8.57,N,,N,N
Pendle Borough Council,Property Services,Premises Related Expense,Electricity,2203,E.ON NEXT ENERGY LIMITED,A0096428,20/07/2023,EST0335264,30,N,,N,N
Pendle Borough Council,Property Services,Premises Related Expense,Electricity,2203,E.ON NEXT ENERGY LIMITED,A0096428,20/07/2023,EST0335283,31,N,,N,N
Pendle Borough Council,Property Services,Premises Related Expense,Electricity,2203,E.ON NEXT ENERGY LIMITED,A0096428,20/07/2023,EST0335282,48.93,N,,N,N
Pendle Borough Council,Property Services,Premises Related Expense,Electricity,2203,E.ON NEXT ENERGY LIMITED,A0096428,13/07/2023,EST0335159,65,N,,N,N
Pendle Borough Council,Property Services,Premises Related Expense,Electricity,2203,E.ON NEXT ENERGY LIMITED,A0096428,20/07/2023,EST0335263,76.16,N,,N,N
Pendle Borough Council,Property Services,Premises Related Expense,Electricity,2203,E.ON NEXT ENERGY LIMITED,A0096428,13/07/2023,EST0335138,4.19,N,,N,N
Pendle Borough Council,Property Services,Premises Related Expense,Electricity,2203,E.ON NEXT ENERGY LIMITED,A0096428,13/07/2023,EST0335144,4.34,N,,N,N
Pendle Borough Council,Property Services,Premises Related Expense,Electricity,2203,E.ON NEXT ENERGY LIMITED,A0096428,13/07/2023,EST0335140,4.42,N,,N,N
Pendle Borough Council,Property Services,Premises Related Expense,Electricity,2203,E.ON NEXT ENERGY LIMITED,A0096428,13/07/2023,EST0335139,4.63,N,,N,N
Pendle Borough Council,Property Services,Premises Related Expense,Electricity,2203,E.ON NEXT ENERGY LIMITED,A0096428,13/07/2023,EST0335137,4.66,N,,N,N
Pendle Borough Council,Property Services,Premises Related Expense,Electricity,2203,E.ON NEXT ENERGY LIMITED,A0096428,13/07/2023,EST0335141,14.79,N,,N,N
Pendle Borough Council,Property Services,Premises Related Expense,Electricity,2203,E.ON NEXT ENERGY LIMITED,A0096428,20/07/2023,EST0335269,26.41,N,,N,N
Pendle Borough Council,Property Services,Premises Related Expense,Electricity,2203,E.ON NEXT ENERGY LIMITED,A0096428,13/07/2023,EST0335146,28.42,N,,N,N
Pendle Borough Council,Property Services,Premises Related Expense,Electricity,2203,E.ON NEXT ENERGY LIMITED,A0096428,13/07/2023,EST0335147,30,N,,N,N
Pendle Borough Council,Property Services,Premises Related Expense,Electricity,2203,E.ON NEXT ENERGY LIMITED,A0096428,13/07/2023,EST0335164,30,N,,N,N
Pendle Borough Council,Property Services,Premises Related Expense,Electricity,2203,E.ON NEXT ENERGY LIMITED,A0096428,13/07/2023,EST0335148,31,N,,N,N
Pendle Borough Council,Property Services,Premises Related Expense,Electricity,2203,E.ON NEXT ENERGY LIMITED,A0096428,20/07/2023,EST0335260,38.84,N,,N,N
Pendle Borough Council,Property Services,Premises Related Expense,Electricity,2203,E.ON NEXT ENERGY LIMITED,A0096428,06/07/2023,EST0334935,109.56,N,,N,N
Pendle Borough Council,Property Services,Premises Related Expense,Electricity,2203,E.ON NEXT ENERGY LIMITED,A0096428,13/07/2023,EST0335082,109.56,N,,N,N
Pendle Borough Council,Property Services,Premises Related Expense,Electricity,2203,E.ON NEXT ENERGY LIMITED,A0096428,13/07/2023,EST0335080,168.49,N,,N,N
Pendle Borough Council,Property Services,Premises Related Expense,Electricity,2203,E.ON NEXT ENERGY LIMITED,A0096428,13/07/2023,EST0335081,189.1,N,,N,N
Pendle Borough Council,Property Services,Premises Related Expense,Electricity,2203,E.ON NEXT ENERGY LIMITED,A0096428,06/07/2023,EST0334930,260.9,N,,N,N
Pendle Borough Council,Property Services,Premises Related Expense,Electricity,2203,E.ON NEXT ENERGY LIMITED,A0096428,13/07/2023,EST0335096,3.92,N,,N,N
Pendle Borough Council,Property Services,Premises Related Expense,Electricity,2203,E.ON NEXT ENERGY LIMITED,A0096428,13/07/2023,EST0335097,3.92,N,,N,N
Pendle Borough Council,Property Services,Premises Related Expense,Electricity,2203,E.ON NEXT ENERGY LIMITED,A0096428,20/07/2023,EST0335271,4.2,N,,N,N
Pendle Borough Council,Property Services,Premises Related Expense,Electricity,2203,E.ON NEXT ENERGY LIMITED,A0096428,06/07/2023,EST0334933,4.34,N,,N,N
Pendle Borough Council,Property Services,Premises Related Expense,Electricity,2203,E.ON NEXT ENERGY LIMITED,A0096428,06/07/2023,EST0334934,4.34,N,,N,N
Pendle Borough Council,Property Services,Premises Related Expense,Electricity,2203,E.ON NEXT ENERGY LIMITED,A0096428,13/07/2023,EST0335095,4.34,N,,N,N
Pendle Borough Council,Property Services,Premises Related Expense,Electricity,2203,E.ON NEXT ENERGY LIMITED,A0096428,13/07/2023,EST0335098,4.34,N,,N,N
Pendle Borough Council,Property Services,Premises Related Expense,Electricity,2203,E.ON NEXT ENERGY LIMITED,A0096428,13/07/2023,EST0335166,4.34,N,,N,N
Pendle Borough Council,Property Services,Premises Related Expense,Electricity,2203,E.ON NEXT ENERGY LIMITED,A0096428,13/07/2023,EST0335088,28,N,,N,N
Pendle Borough Council,Property Services,Premises Related Expense,Electricity,2203,E.ON NEXT ENERGY LIMITED,A0096428,06/07/2023,EST0334939,31,N,,N,N
Pendle Borough Council,Property Services,Premises Related Expense,Electricity,2203,E.ON NEXT ENERGY LIMITED,A0096428,13/07/2023,EST0335089,31,N,,N,N
Pendle Borough Council,Property Services,Premises Related Expense,Electricity,2203,E.ON NEXT ENERGY LIMITED,A0096428,20/07/2023,EST0335270,33,N,,N,N
Pendle Borough Council,Operational Services,Premises Related Expense,Grounds : R & M : Day to Day : Routine,2101,JMB SERVICES,A0096485,13/07/2023,OPS0334976,3625,N,,N,N
Pendle Borough Council,Operational Services,Premises Related Expense,Grounds : R & M : Day to Day : Routine,2101,JMB SERVICES,A0096485,13/07/2023,OPS0334976,3625,N,,N,N
Pendle Borough Council,Operational Services,Premises Related Expense,Niche Walls & Ashes Chambers,2107,JCB PRICE & SON LTD,A0096491,20/07/2023,OPS0335205,4400,N,,N,N
Pendle Borough Council,Operational Services,Premises Related Expense,Niche Walls & Ashes Chambers,2107,JCB PRICE & SON LTD,A0096491,13/07/2023,OPS0334980,6800,N,,N,N
Pendle Borough Council,Housing & Environmental Health,Supplies and Services,Grant Funding,4737,CURRY ON THE STREET,A0096527,13/07/2023,ECO0334961,8900,N,,N,N
Pendle Borough Council,Directorate,Supplies and Services,Consultants Fees,4401,JJG CONSULTANCY & EXECUTIVE COACHING SERVICES LTD,A0096573,13/07/2023,DIR0335011,1770,N,,N,N
Pendle Borough Council,Housing & Environmental Health,Capital Costs,Miscellaneous,CE4F,PLACE INFORMATICS LTD,A0096792,13/07/2023,HEH0334990,7000,N,,N,N
Pendle Borough Council,Finance,Supplies and Services,Grant Funding,4737,REDACT - PERSONAL DATA,A0096806,06/07/2023,AAS0334893,500,N,,N,N
Pendle Borough Council,Finance,Supplies and Services,Grant Funding,4737,REDACT - PERSONAL DATA,A0096808,06/07/2023,AAS0334895,500,N,,N,N
Pendle Borough Council,Finance,Supplies and Services,Grant Funding,4737,REDACT - PERSONAL DATA,A0096810,06/07/2023,AAS0334896,500,N,,N,N
Pendle Borough Council,Finance,Supplies and Services,Grant Funding,4737,REDACT - PERSONAL DATA,A0096819,06/07/2023,AAS0334897,500,N,,N,N
Pendle Borough Council,Finance,Supplies and Services,Grant Funding,4737,REDACT - PERSONAL DATA,A0096823,06/07/2023,AAS0334894,500,N,,N,N
Pendle Borough Council,Property Services,Premises Related Expense,Bldgs : R & M : Day To Day,2001,INDUSTRIAL DOOR ENGINEERING,A0096826,20/07/2023,EST0335259,916,N,,N,N
Pendle Borough Council,Finance,Supplies and Services,Other Expenses,4705,POST OFFICE LTD,A0096844,06/07/2023,AAS0334921,12.71,N,,N,N
Pendle Borough Council,Finance,Supplies and Services,Other Expenses,4705,POST OFFICE LTD,A0096844,27/07/2023,FIN0335457,12.71,N,,N,N
Pendle Borough Council,Finance,Supplies and Services,Other Expenses,4705,POST OFFICE LTD,A0096844,27/07/2023,FIN0335456,31.7,N,,N,N
Pendle Borough Council,Finance,Supplies and Services,Grant Funding,4737,REDACT - PERSONAL DATA,A0096866,06/07/2023,AAS0334898,500,N,,N,N
Pendle Borough Council,Finance,Supplies and Services,Grant Funding,4737,REDACT - PERSONAL DATA,A0096872,06/07/2023,AAS0334899,350,N,,N,N
Pendle Borough Council,Finance,Supplies and Services,Grant Funding,4737,REDACT - PERSONAL DATA,A0096893,06/07/2023,AAS0334900,350,N,,N,N
Pendle Borough Council,Finance,Supplies and Services,Grant Funding,4737,REDACT - PERSONAL DATA,A0096910,06/07/2023,AAS0334903,500,N,,N,N
Pendle Borough Council,Finance,Supplies and Services,Grant Funding,4737,REDACT - PERSONAL DATA,A0096912,06/07/2023,AAS0334901,500,N,,N,N
Pendle Borough Council,Finance,Supplies and Services,Grant Funding,4737,REDACT - PERSONAL DATA,A0096916,06/07/2023,AAS0334902,350,N,,N,N
Pendle Borough Council,Property Services,Capital Costs,Capital : Payments,CD14,BUILDING TECHNOLOGY SYSTEMS LTD,A0096928,20/07/2023,EST0335310,735,N,,N,N
Pendle Borough Council,Economic Growth,Supplies and Services,Other Expenses,4705,GREAT PLACES HOUSING GROUP,A0096937,06/07/2023,HED0334788,377.36,N,,N,N
Pendle Borough Council,Operational Services,Capital Costs,Capital : Payments,CD14,THE CDS GROUP,A0096940,13/07/2023,OPS0335031,12550,N,,N,N
Pendle Borough Council,Operational Services,Capital Costs,Capital : Payments,CD14,THE CDS GROUP,A0096940,13/07/2023,OPS0335032,1225,N,,N,N
Pendle Borough Council,Policy & Commissioning,Supplies and Services,Children`s holiday activities,4716,SPRING NORTH LTD,A0096968,27/07/2023,POL0335210,2755,N,,N,N
Pendle Borough Council,Finance,Supplies and Services,Grant Funding,4737,REDACT - PERSONAL DATA,A0096978,06/07/2023,AAS0334904,350,N,,N,N
Pendle Borough Council,Finance,Supplies and Services,Grant Funding,4737,REDACT - PERSONAL DATA,A0096980,06/07/2023,AAS0334905,350,N,,N,N
Pendle Borough Council,Operational Services,,Stock : Purchases,PJ01,ANZECK PLASTICS LTD,A0096999,06/07/2023,OPS0334828,1947.85,N,,N,N
Pendle Borough Council,Finance,Supplies and Services,Grant Funding,4737,REDACT - PERSONAL DATA,A0097003,06/07/2023,AAS0334906,350,N,,N,N
Pendle Borough Council,Directorate,Supplies and Services,Consultants Fees,4401,RAISE PARTNERSHIP LTD,A0097017,13/07/2023,DIR0335037,1304.39,N,,N,N
Pendle Borough Council,Housing & Environmental Health,Supplies and Services,Consultants Fees,4401,RAISE PARTNERSHIP LTD,A0097017,13/07/2023,HED0334875,1345.8,N,,N,N
Pendle Borough Council,Housing & Environmental Health,Supplies and Services,Consultants Fees,4401,RAISE PARTNERSHIP LTD,A0097017,13/07/2023,HED0334874,16033.34,N,,N,N
Pendle Borough Council,Directorate,Supplies and Services,Publicity & advertisement,4704,RAISE PARTNERSHIP LTD,A0097017,13/07/2023,DIR0335039,1925,N,,N,N
Pendle Borough Council,Directorate,Capital Costs,Consultancy,CE45,RAISE PARTNERSHIP LTD,A0097017,13/07/2023,DIR0335038,1950,N,,N,N
Pendle Borough Council,Operational Services,Transport Related Expense,Tprt : Repairs : General,3105,SIXIS Technology Ltd,A0097018,06/07/2023,PCO0334810,458.8,N,,N,N
Pendle Borough Council,Operational Services,Transport Related Expense,Tprt : Annual Hire Charge,3601,CAR HIRE DAY OF SWANSEA LTD,A0097023,27/07/2023,OPS0335367,701.22,N,,N,N
Pendle Borough Council,Finance,Supplies and Services,Consultants Fees,4401,LINK GROUP,A0097159,27/07/2023,FIN0335453,20000,N,,N,N
Pendle Borough Council,Operational Services,Capital Costs,Capital : Payments,CD14,GILESKIPS,A0097167,13/07/2023,OPS0335035,5535,N,,N,N
Pendle Borough Council,Economic Growth,Premises Related Expense,Grounds : R & M : Day to Day : Routine,2101,REDACT - PERSONAL DATA,A0097176,13/07/2023,ECO0335172,42.29,N,,N,N
Pendle Borough Council,Economic Growth,Premises Related Expense,Grounds : R & M : Day to Day : Routine,2101,NORTH WEST FIRST AID LTD,A0097284,27/07/2023,ECO0335450,311.75,N,,N,N
Pendle Borough Council,Operational Services,Premises Related Expense,Grounds : R & M : Day to Day : Routine,2101,TECHNICAL SITE DISTRIBUTION LTD,A0097336,06/07/2023,PCO0334806,442,N,,N,N
Pendle Borough Council,Finance,Supplies and Services,Grant Funding,4737,REDACT - PERSONAL DATA,A0097338,06/07/2023,AAS0334907,350,N,,N,N
Pendle Borough Council,Finance,Supplies and Services,Grant Funding,4737,REDACT - PERSONAL DATA,A0097338,06/07/2023,AAS0334908,350,N,,N,N
Pendle Borough Council,Finance,Supplies and Services,Grant Funding,4737,REDACT - PERSONAL DATA,A0097338,06/07/2023,AAS0334909,350,N,,N,N
Pendle Borough Council,Finance,Supplies and Services,Grant Funding,4737,REDACT - PERSONAL DATA,A0097338,06/07/2023,AAS0334910,350,N,,N,N
Pendle Borough Council,Finance,Supplies and Services,Grant Funding,4737,REDACT - PERSONAL DATA,A0097338,06/07/2023,AAS0334911,350,N,,N,N
Pendle Borough Council,Finance,Supplies and Services,Grant Funding,4737,REDACT - PERSONAL DATA,A0097338,06/07/2023,AAS0334912,350,N,,N,N
Pendle Borough Council,Finance,Supplies and Services,Grant Funding,4737,REDACT - PERSONAL DATA,A0097339,06/07/2023,AAS0334913,350,N,,N,N
Pendle Borough Council,Finance,Supplies and Services,Grant Funding,4737,REDACT - PERSONAL DATA,A0097339,06/07/2023,AAS0334914,350,N,,N,N
Pendle Borough Council,Finance,Supplies and Services,Grant Funding,4737,REDACT - PERSONAL DATA,A0097339,06/07/2023,AAS0334915,350,N,,N,N
Pendle Borough Council,Property Services,Capital Costs,Capital: Construction: Conversion/Refu,CD57,ANGLO ASBESTOS LIMITED,A0097352,20/07/2023,EST0335286,16900,N,,N,N
Pendle Borough Council,Finance,Supplies and Services,Mayoral Allowance,4615,BRIAN NEWMAN,A0097382,06/07/2023,AAS0334920,6130,N,,N,N
Pendle Borough Council,Operational Services,Supplies and Services,Other Expenses,4705,ECO REMOVAL SYSTEMS LTD,A0097384,27/07/2023,OPS0335364,7860.7,N,,N,N
Pendle Borough Council,Economic Growth,Supplies and Services,Consultants Fees,4401,REDACT - PERSONAL DATA,A0097386,06/07/2023,HED0334781,750,N,,N,N
Pendle Borough Council,Economic Growth,Supplies and Services,Consultants Fees,4401,STERLING SURVEYS,A0097390,06/07/2023,HED0334813,1100,N,,N,N
Pendle Borough Council,Operational Services,Premises Related Expense,Bldgs : R & M : Day To Day,2001,SAFE FENCE LTD,A0097392,20/07/2023,OPS0335219,784.99,N,,N,N
Pendle Borough Council,Finance,Supplies and Services,Grant Funding,4737,REDACT - PERSONAL DATA,A0097395,06/07/2023,AAS0334916,400,N,,N,N
Pendle Borough Council,Finance,Supplies and Services,Grant Funding,4737,REDACT - PERSONAL DATA,A0097396,06/07/2023,AAS0334917,400,N,,N,N
Pendle Borough Council,Finance,Supplies and Services,Grant Funding,4737,REDACT - PERSONAL DATA,A0097397,06/07/2023,AAS0334918,400,N,,N,N
Pendle Borough Council,Finance,Supplies and Services,Grant Funding,4737,REDACT - PERSONAL DATA,A0097398,06/07/2023,AAS0334919,400,N,,N,N
Pendle Borough Council,Housing & Environmental Health,Supplies and Services,Consultants Fees,4401,LOUIS BROWNE K C,A0097399,13/07/2023,HEH0334992,1208.33,N,,N,N
Pendle Borough Council,Housing & Environmental Health,Supplies and Services,Other Expenses,4705,BLUE OCEAN LETTINGS LTD,A0097400,13/07/2023,HEH0335045,1060,N,,N,N
Pendle Borough Council,Housing & Environmental Health,Transfer Payments,Storage & Homelessness prevention,6104,AINSWORTH & GAWTHORP,A0097401,13/07/2023,HEH0335168,434.5,N,,N,N
Pendle Borough Council,Finance,Supplies and Services,Grant Funding,4737,REDACT - PERSONAL DATA,A0097402,14/07/2023,FIN0335183,200,N,,N,N
Pendle Borough Council,Finance,Supplies and Services,Grant Funding,4737,REDACT - PERSONAL DATA,A0097403,14/07/2023,FIN0335184,400,N,,N,N
Pendle Borough Council,Operational Services,Premises Related Expense,Grounds : R & M : Day to Day : Routine,2101,E L PARKER LTD,A0097404,20/07/2023,OPS0335230,400,N,,N,N
Pendle Borough Council,Economic Growth,Premises Related Expense,Grounds : R & M : Day to Day : Routine,2101,WOODSCAPE LIMITED,A0097405,27/07/2023,ECO0335447,36,N,,N,N
Pendle Borough Council,Finance,Supplies and Services,Grant Funding,4737,REDACT - PERSONAL DATA,A0097406,21/07/2023,FIN0335354,400,N,,N,N
Pendle Borough Council,Finance,Supplies and Services,Grant Funding,4737,REDACT - PERSONAL DATA,A0097407,21/07/2023,FIN0335355,400,N,,N,N
Pendle Borough Council,Housing & Environmental Health,Capital Costs,Ren Grant : 1996 Act,CH22,CONNELL BROS BUILDERS,A0097410,27/07/2023,HEH0335395,27297,N,,N,N
Pendle Borough Council,Housing & Environmental Health,Capital Costs,Ren Grant : 1996 Act,CH22,CONNELL BROS BUILDERS,A0097410,27/07/2023,HEH0335396,27300,N,,N,N
